Workbook

Sheet 1. Info
AB1: Algoma Power Inc.
AB2: Atikokan Hydro Inc.
AB3: Attawapiskat Power Corporation
AB4: Bluewater Power Distribution Corp.
AB5: Brant County Power
AB6: Brantford Power Inc.
AB7: Burlington Hydro Inc.
AB8: Cambridge and North Dumfries Hydro
AB9: Canadian Niagara Power Inc. – Eastern Ontario Power/Fort Erie/Port Colborne
AB10: Centre Wellington Hydro Ltd.
AB11: Chapleau Public Utilities Corporation
AB12: COLLUS Power Corp.
AB13: Cooperative Hydro Embrun Inc.
AB14: E.L.K. Energy Inc.
C15: Utility Name | D15: Haldimand County Hydro Inc. | AB15: Enersource Hydro Mississauga Inc.
AB16: Entegrus Powerlines Inc.
C17: Assigned EB Number | D17: EB-2012-0129 | AB17: ENWIN Utilities Ltd.
AB18: Erie Thames Powerlines Corp.
C19: Name and Title | D19: Jacqueline A. Scott | AB19: Espanola Regional Hydro Distribution Corporation
AB20: Essex Powerlines Corporation
C21: Phone Number | D21: 905-765-5211 ext.2237 | AB21: Festival Hydro Inc.
AB22: Fort Albany Power Corporation
C23: Email Address | D23: jscott@hchydro.ca | AB23: Fort Frances Power Corporation
AB24: Greater Sudbury Hydro Inc.
C25: Date | D25: 2012-10-22 | AB25: Grimsby Power Inc.
AB26: Guelph Hydro Electric Systems Inc.
C27: Last COS Re-based Year | D27: 2010 | AB27: Haldimand County Hydro Inc.
AB28: Halton Hills Hydro Inc.
AB29: Hearst Power Distribution Co. Ltd.
A30: Note: Drop-down lists are shaded blue; Input cells are shaded green.
AB32: Horizon Utilities Corporation
AB33: Hydro 2000 Inc.
AB34: Hydro Hawkesbury Inc.
AB35: Hydro One Brampton Networks Inc.
AB36: Hydro One Networks Inc.
AB37: Hydro One Remote Communities Inc.
AB38: Hydro Ottawa Limited
AB39: Innisfil Hydro Dist. Systems Limited
AB40: Kashechewan Power Corporation
AB41: Kenora Hydro Electric Corporation Ltd.
AB42: Kingston Hydro Corporation
AB43: Kitchener-Wilmot Hydro Inc.
AB44: Lakefront Utilities Inc.
AB45: Lakeland Power Distribution Ltd.
AB46: London Hydro Inc.
AB47: Midland Power Utility Corporation
AB48: Milton Hydro Distribution Inc.
AB49: Newmarket – Tay Power Distribution Ltd.
AB50: Niagara Peninsula Energy Inc.
AB51: Niagara-on-the-Lake Hydro Inc.
AB52: Norfolk Power Distribution Ltd.
AB53: North Bay Hydro Distribution Limited
AB54: Northern Ontario Wires Inc.
AB55: Oakville Hydro Distribution Inc.
AB56: Orangeville Hydro Limited
AB57: Orillia Power Distribution Corp.
AB58: Oshawa PUC Networks Inc.
AB59: Ottawa River Power Corporation
AB60: Parry Sound Power Corporation
AB61: Peterborough Distribution Inc.
AB62: PowerStream Inc.
AB63: PUC Distribution Inc.
AB64: Renfrew Hydro Inc.
AB65: Rideau St. Lawrence Distribution Inc.
AB66: St. Thomas Energy Inc.
AB67: Sioux Lookout Hydro Inc.
AB68: Thunder Bay Hydro Electricity Distribution
AB69: Tillsonburg Hydro Inc.
AB70: Toronto Hydro-Electric System Limited
AB71: Veridian Connections Inc.
AB72: Wasaga Distribution Inc.
AB73: Waterloo North Hydro Inc.
AB74: Welland Hydro Electric System Corp.
AB75: Wellington North Power Inc.
AB76: West Coast Huron Energy Inc.
AB77: Westario Power Inc.
AB78: Whitby Hydro Electric Corporation
AB79: Woodstock Hydro Services Inc.

Sheet 2. Table of Contents
D20: 1. Info | I20: 7. Current Wholesale
D22: 2. Table of Contents | I22: 8. Forecast Wholesale
D24: 3. Rate Classes | I24: 9. Adj Network to Current WS
D26: 4. RRR Data | I26: 10. Adj Conn. to Current WS
D28: 5. UTRs and Sub-Transmission | I28: 11. Adj Network to Forecast WS
D30: 6. Historical Wholesale | I30: 12. Adj Conn. to Forecast WS
I32: 13. Final 2013 RTS Rates

Sheet 3. Rate Classes
C13: 1. Select the appropriate rate classes that appear on your most recent Board-Approved Tariff of Rates and Charges. 2. Enter the RTS Network and Connection Rate as it appears on the Tariff of Rates and Charges
C22: Rate Class | H22: Unit | J22: RTSR-Network | M22: RTSR-Connection
C24: Residential | H24: kWh | J24: 0.0067 | M24: 0.0052 | Q24: =IF(OR(ISBLANK(C24), ISERROR(FIND("Choose", C24))=FALSE), 0, 1) -> 1 | R24: ="C" & ROW(C24) -> C24 | S24: =IF(OR(C24="General Service Intermediate Rate Class 1,000 To 4,999 kW (formerly General Service > 50 kW Customers)", C24="General Service Intermediate Rate Class 1,000 To 4,999 kW (formerly Large Use Customers)"), "x", "") ->  | AB24: Choose Rate Class
C25: General Service Less Than 50 kW | H25: kWh | J25: 0.006 | M25: 0.0048 | Q25: 1 | R25: C25 | S25: =IF(OR(C25="General Service Intermediate Rate Class 1,000 To 4,999 kW (formerly General Service > 50 kW Customers)", C25="General Service Intermediate Rate Class 1,000 To 4,999 kW (formerly Large Use Customers)"), "x", "") ->  | AB25: Residential
C26: General Service 50 to 4,999 kW | H26: kW | J26: 2.4495 | M26: 1.882 | Q26: 1 | R26: C26 | AB26: Residential Regular
C27: General Service 50 to 4,999 kW – Interval Metered | H27: kW | J27: 2.5983 | M27: 2.0801 | Q27: 1 | R27: C27 | AB27: Residential Urban
C28: Unmetered Scattered Load | H28: kWh | J28: 0.006 | M28: 0.0048 | Q28: 1 | R28: C28 | AB28: Residential Urban Year-Round
C29: Sentinel Lighting | H29: kW | J29: 1.8564 | M29: 1.4855 | Q29: 1 | R29: C29 | AB29: Residential Suburban
C30: Street Lighting | H30: kW | J30: 1.8471 | M30: 1.4551 | Q30: 1 | R30: C30 | AB30: Residential Suburban Seasonal
C31: Choose Rate Class | Q31: 0 | R31: C31 | AB31: Residential Suburban Year Round
C32: Choose Rate Class | Q32: 0 | R32: C32 | AB32: Residential - Time of Use
C33: Choose Rate Class | Q33: 0 | R33: C33 | AB33: Residential - Hensall
C34: Choose Rate Class | Q34: 0 | R34: C34 | AB34: Residential – High Density [R1]
C35: Choose Rate Class | Q35: 0 | R35: C35 | AB35: Residential – Normal Density [R2]
C36: Choose Rate Class | Q36: 0 | R36: C36 | AB36: Seasonal Residential – High Density [R3]
C37: Choose Rate Class | Q37: 0 | R37: C37 | AB37: Seasonal Residential – Normal Density [R4]
C38: Choose Rate Class | Q38: 0 | R38: C38 | AB38: Residential – Urban [UR]
C39: Choose Rate Class | Q39: 0 | R39: C39
C40: Choose Rate Class | Q40: 0 | R40: C40 | AB40: General Service Less Than 50 kW
C41: Choose Rate Class | Q41: 0 | R41: C41 | AB41: General Service Less Than 50 kW – Single Phase energy-billed [G1]
C42: Choose Rate Class | Q42: 0 | R42: C42 | AB42: General Service Less Than 50 kW – Three Phase energy-billed [G3]
C43: Choose Rate Class | Q43: 0 | R43: C43 | AB43: General Service Less Than 50 kW – Transmission Class energy-billed [T]
C44: Choose Rate Class | Q44: 0 | R44: C44 | AB44: General Service Less Than 50 kW – Urban energy-billed [UG]
C45: Choose Rate Class | Q45: 0 | R45: C45 | AB45: Westport Sewage Treatment Plant
S46: =COUNTIF(S24:S45, "x") -> 0 | AB46: Small Commercial and USL - per meter
AB47: Small Commercial and USL - per connection
AB48: Farms – Single Phase energy-billed [F1]
AB50: General Service 50 to 499 kW
AB51: General Service 50 to 699 kW
AB52: General Service 50 to 999 kW
AB53: General Service 50 to 999 kW - Interval Metered
AB54: General Service 50 to 1,000 kW
AB55: General Service 50 to 1,000 kW - Interval Meters
AB56: General Service 50 to 1,000 kW - Non Interval Meters
AB57: General Service 50 to 1,499 kW
AB58: General Service 50 to 1,499 kW - Interval Metered
AB59: General Service 50 to 2,499 kW
AB60: General Service 50 to 2,999 kW
AB61: General Service 50 to 2,999 kW - Time of Use
AB62: General Service 50 to 4,999 kW
AB63: General Service 50 to 4,999 kW – Interval Metered
AB64: General Service 50 to 4,999 kW - Time of Use
AB65: General Service 50 to 4,999 kW (CoGeneration)
AB66: General Service 50 to 4,999 kW (formerly Time of Use)
AB67: General Service 500 to 4,999 kW
AB68: General Service 700 to 4,999 kW
AB69: General Service 1,000 to 2,999 kW
AB70: General Service 1,000 to 4,999 kW
AB71: General Service 1,000 to 4,999 kW - Interval Meters
AB72: General Service 1,000 To 4,999 kW (co-generation)
AB73: General Service Greater Than 1,000 kW
AB74: General Service Intermediate Rate Class 1,000 To 4,999 kW (formerly Large Use Customers)
AB75: General Service Intermediate Rate Class 1,000 To 4,999 kW (formerly General Service > 50 kW Customers)
AB76: General Service 1,500 to 4,999 kW
AB77: General Service Equal To Or Greater Than 1,500 kW
AB78: General Service Equal To Or Greater Than 1,500 kW - Interval Metered
AB79: General Service Intermediate 1,000 To 4,999 kW
AB80: General Service 2,500 to 4,999 kW
AB81: General Service 3,000 to 4,999 kW
AB82: General Service 3,000 to 4,999 kW - Interval Metered
AB83: General Service 3,000 to 4,999 kW - Intermediate Use
AB84: General Service 3,000 to 4,999 kW - Time of Use
AB85: Intermediate With Self Generation
AB86: General Service - Commercial
AB87: General Service - Institutional
AB88: Farms – Three Phase energy-billed [F3]
AB90: Large Use
AB91: Large Use - Regular
AB92: Large Use > 5000 kW
AB93: Large Use - 3TS
AB94: Large Use - Ford Annex
AB96: Unmetered Scattered Load
AB98: Sentinel Lighting
AB100: Street Lighting
AB102: Embedded Distributor
AB103: Low Voltage Wheeling Charge Rate
AB105: Stand-By
AB106: Standby Power
AB107: Standby Power – INTERIM APPROVAL
AB108: Standby Power - APPROVED ON AN INTERIM BASIS
AB109: Standby - General Service 50 - 1,000 kW
AB110: Standby Power General Service 50 to 1,499 kW
AB111: Standby - General Service 1,000 - 5,000 kW
AB112: Standby Power General Service 1,500 to 4,999 kW
AB113: Standby - Large Use
AB114: Standby Power General Service Large Use
AB115: Standby Distribution Service

Sheet 4. RRR Data
B13: In the green shaded cells, enter the most recent reported RRR billing determinants. Please ensure that billing determinants are non-loss adjusted.
B24: Rate Class | D24: Unit | F24: Non-Loss Adjusted Metered kWh | G24: Non-Loss Adjusted Metered kW | H24: Applicable Loss Factor | J24: Load Factor | L24: Loss Adjusted Billed kWh | M24: Billed kW
B27: =IF('3. Rate Classes'!Q24=1,'3. Rate Classes'!C24, 0) -> Residential | D27: =IF(OR(VLOOKUP($B27, '3. Rate Classes'!$C$24:$H$45,6,0)=0, ISERROR(VLOOKUP($B27, '3. Rate Classes'!$C$24:$H$45,6,0))), "", VLOOKUP($B27, '3. Rate Classes'!$C$24:$H$45,6,0)) -> kWh | F27: 171241285 | H27: 1.068 | J27: =IF(ISERROR(F27/(G27*30.4*24)), "", IF(D27="kW", F27/(G27*30.4*24), "")) ->  | L27: =IF(OR(H27=0, OR(ISBLANK(H27), TRIM(H27)="")), F27, F27*H27) -> 182885692.4 | M27: =IF(OR(H27=0, OR(ISBLANK(H27), TRIM(H27)="")), G27, G27) -> 0
B28: =IF('3. Rate Classes'!Q25=1,'3. Rate Classes'!C25, 0) -> General Service Less Than 50 kW | D28: =IF(OR(VLOOKUP($B28, '3. Rate Classes'!$C$24:$H$45,6,0)=0, ISERROR(VLOOKUP($B28, '3. Rate Classes'!$C$24:$H$45,6,0))), "", VLOOKUP($B28, '3. Rate Classes'!$C$24:$H$45,6,0)) -> kWh | F28: 57101452 | H28: 1.068 | L28: =IF(OR(H28=0, OR(ISBLANK(H28), TRIM(H28)="")), F28, F28*H28) -> 60984350.74 | M28: =IF(OR(H28=0, OR(ISBLANK(H28), TRIM(H28)="")), G28, G28) -> 0
B29: =IF('3. Rate Classes'!Q26=1,'3. Rate Classes'!C26, 0) -> General Service 50 to 4,999 kW | D29: =IF(OR(VLOOKUP($B29, '3. Rate Classes'!$C$24:$H$45,6,0)=0, ISERROR(VLOOKUP($B29, '3. Rate Classes'!$C$24:$H$45,6,0))), "", VLOOKUP($B29, '3. Rate Classes'!$C$24:$H$45,6,0)) -> kW | F29: 29326720 | G29: 95668 | J29: 0.4201573571 | L29: 29326720 | M29: 95668
B30: =IF('3. Rate Classes'!Q27=1,'3. Rate Classes'!C27, 0) -> General Service 50 to 4,999 kW – Interval Metered | D30: =IF(OR(VLOOKUP($B30, '3. Rate Classes'!$C$24:$H$45,6,0)=0, ISERROR(VLOOKUP($B30, '3. Rate Classes'!$C$24:$H$45,6,0))), "", VLOOKUP($B30, '3. Rate Classes'!$C$24:$H$45,6,0)) -> kW | F30: 89216393 | G30: 237050 | J30: 0.5158457726 | L30: 89216393 | M30: 237050
B31: =IF('3. Rate Classes'!Q28=1,'3. Rate Classes'!C28, 0) -> Unmetered Scattered Load | D31: =IF(OR(VLOOKUP($B31, '3. Rate Classes'!$C$24:$H$45,6,0)=0, ISERROR(VLOOKUP($B31, '3. Rate Classes'!$C$24:$H$45,6,0))), "", VLOOKUP($B31, '3. Rate Classes'!$C$24:$H$45,6,0)) -> kWh | F31: 406515 | H31: 1.068 | L31: 434158.02 | M31: 0
B32: =IF('3. Rate Classes'!Q29=1,'3. Rate Classes'!C29, 0) -> Sentinel Lighting | D32: =IF(OR(VLOOKUP($B32, '3. Rate Classes'!$C$24:$H$45,6,0)=0, ISERROR(VLOOKUP($B32, '3. Rate Classes'!$C$24:$H$45,6,0))), "", VLOOKUP($B32, '3. Rate Classes'!$C$24:$H$45,6,0)) -> kW | F32: 385924 | G32: 1069 | J32: 0.4948108989 | L32: 385924 | M32: 1069
B33: =IF('3. Rate Classes'!Q30=1,'3. Rate Classes'!C30, 0) -> Street Lighting | D33: =IF(OR(VLOOKUP($B33, '3. Rate Classes'!$C$24:$H$45,6,0)=0, ISERROR(VLOOKUP($B33, '3. Rate Classes'!$C$24:$H$45,6,0))), "", VLOOKUP($B33, '3. Rate Classes'!$C$24:$H$45,6,0)) -> kW | F33: 2281811 | G33: 6646 | J33: =IF(ISERROR(F33/(G33*30.4*24)), "", IF(D33="kW", F33/(G33*30.4*24), "")) -> 0.4705811288 | L33: 2281811 | M33: 6646
B34: =IF('3. Rate Classes'!Q31=1,'3. Rate Classes'!C31, 0) -> 0 | D34: =IF(OR(VLOOKUP($B34, '3. Rate Classes'!$C$24:$H$45,6,0)=0, ISERROR(VLOOKUP($B34, '3. Rate Classes'!$C$24:$H$45,6,0))), "", VLOOKUP($B34, '3. Rate Classes'!$C$24:$H$45,6,0)) ->  | L34: 0 | M34: 0
B35: =IF('3. Rate Classes'!Q32=1,'3. Rate Classes'!C32, 0) -> 0 | D35: =IF(OR(VLOOKUP($B35, '3. Rate Classes'!$C$24:$H$45,6,0)=0, ISERROR(VLOOKUP($B35, '3. Rate Classes'!$C$24:$H$45,6,0))), "", VLOOKUP($B35, '3. Rate Classes'!$C$24:$H$45,6,0)) ->  | L35: 0 | M35: 0
B36: =IF('3. Rate Classes'!Q33=1,'3. Rate Classes'!C33, 0) -> 0 | D36: =IF(OR(VLOOKUP($B36, '3. Rate Classes'!$C$24:$H$45,6,0)=0, ISERROR(VLOOKUP($B36, '3. Rate Classes'!$C$24:$H$45,6,0))), "", VLOOKUP($B36, '3. Rate Classes'!$C$24:$H$45,6,0)) ->  | L36: 0 | M36: 0
B37: =IF('3. Rate Classes'!Q34=1,'3. Rate Classes'!C34, 0) -> 0 | D37: =IF(OR(VLOOKUP($B37, '3. Rate Classes'!$C$24:$H$45,6,0)=0, ISERROR(VLOOKUP($B37, '3. Rate Classes'!$C$24:$H$45,6,0))), "", VLOOKUP($B37, '3. Rate Classes'!$C$24:$H$45,6,0)) ->  | L37: 0 | M37: 0
B38: =IF('3. Rate Classes'!Q35=1,'3. Rate Classes'!C35, 0) -> 0 | D38: =IF(OR(VLOOKUP($B38, '3. Rate Classes'!$C$24:$H$45,6,0)=0, ISERROR(VLOOKUP($B38, '3. Rate Classes'!$C$24:$H$45,6,0))), "", VLOOKUP($B38, '3. Rate Classes'!$C$24:$H$45,6,0)) ->  | L38: 0 | M38: 0
B39: =IF('3. Rate Classes'!Q36=1,'3. Rate Classes'!C36, 0) -> 0 | D39: =IF(OR(VLOOKUP($B39, '3. Rate Classes'!$C$24:$H$45,6,0)=0, ISERROR(VLOOKUP($B39, '3. Rate Classes'!$C$24:$H$45,6,0))), "", VLOOKUP($B39, '3. Rate Classes'!$C$24:$H$45,6,0)) ->  | L39: 0 | M39: 0
B40: =IF('3. Rate Classes'!Q37=1,'3. Rate Classes'!C37, 0) -> 0 | D40: =IF(OR(VLOOKUP($B40, '3. Rate Classes'!$C$24:$H$45,6,0)=0, ISERROR(VLOOKUP($B40, '3. Rate Classes'!$C$24:$H$45,6,0))), "", VLOOKUP($B40, '3. Rate Classes'!$C$24:$H$45,6,0)) ->  | L40: 0 | M40: 0
B41: =IF('3. Rate Classes'!Q38=1,'3. Rate Classes'!C38, 0) -> 0 | D41: =IF(OR(VLOOKUP($B41, '3. Rate Classes'!$C$24:$H$45,6,0)=0, ISERROR(VLOOKUP($B41, '3. Rate Classes'!$C$24:$H$45,6,0))), "", VLOOKUP($B41, '3. Rate Classes'!$C$24:$H$45,6,0)) ->  | L41: 0 | M41: 0
B42: =IF('3. Rate Classes'!Q39=1,'3. Rate Classes'!C39, 0) -> 0 | D42: =IF(OR(VLOOKUP($B42, '3. Rate Classes'!$C$24:$H$45,6,0)=0, ISERROR(VLOOKUP($B42, '3. Rate Classes'!$C$24:$H$45,6,0))), "", VLOOKUP($B42, '3. Rate Classes'!$C$24:$H$45,6,0)) ->  | L42: 0 | M42: 0
B43: =IF('3. Rate Classes'!Q40=1,'3. Rate Classes'!C40, 0) -> 0 | D43: =IF(OR(VLOOKUP($B43, '3. Rate Classes'!$C$24:$H$45,6,0)=0, ISERROR(VLOOKUP($B43, '3. Rate Classes'!$C$24:$H$45,6,0))), "", VLOOKUP($B43, '3. Rate Classes'!$C$24:$H$45,6,0)) ->  | L43: 0 | M43: 0
B44: =IF('3. Rate Classes'!Q41=1,'3. Rate Classes'!C41, 0) -> 0 | D44: =IF(OR(VLOOKUP($B44, '3. Rate Classes'!$C$24:$H$45,6,0)=0, ISERROR(VLOOKUP($B44, '3. Rate Classes'!$C$24:$H$45,6,0))), "", VLOOKUP($B44, '3. Rate Classes'!$C$24:$H$45,6,0)) ->  | L44: 0 | M44: 0
B45: =IF('3. Rate Classes'!Q42=1,'3. Rate Classes'!C42, 0) -> 0 | D45: =IF(OR(VLOOKUP($B45, '3. Rate Classes'!$C$24:$H$45,6,0)=0, ISERROR(VLOOKUP($B45, '3. Rate Classes'!$C$24:$H$45,6,0))), "", VLOOKUP($B45, '3. Rate Classes'!$C$24:$H$45,6,0)) ->  | L45: 0 | M45: 0
B46: =IF('3. Rate Classes'!Q43=1,'3. Rate Classes'!C43, 0) -> 0 | D46: =IF(OR(VLOOKUP($B46, '3. Rate Classes'!$C$24:$H$45,6,0)=0, ISERROR(VLOOKUP($B46, '3. Rate Classes'!$C$24:$H$45,6,0))), "", VLOOKUP($B46, '3. Rate Classes'!$C$24:$H$45,6,0)) ->  | L46: 0 | M46: 0
B47: =IF('3. Rate Classes'!Q44=1,'3. Rate Classes'!C44, 0) -> 0 | D47: =IF(OR(VLOOKUP($B47, '3. Rate Classes'!$C$24:$H$45,6,0)=0, ISERROR(VLOOKUP($B47, '3. Rate Classes'!$C$24:$H$45,6,0))), "", VLOOKUP($B47, '3. Rate Classes'!$C$24:$H$45,6,0)) ->  | L47: 0 | M47: 0
B48: =IF('3. Rate Classes'!Q45=1,'3. Rate Classes'!C45, 0) -> 0 | D48: =IF(OR(VLOOKUP($B48, '3. Rate Classes'!$C$24:$H$45,6,0)=0, ISERROR(VLOOKUP($B48, '3. Rate Classes'!$C$24:$H$45,6,0))), "", VLOOKUP($B48, '3. Rate Classes'!$C$24:$H$45,6,0)) ->  | L48: 0 | M48: 0

Sheet 5. UTRs and Sub-Transmission
B18: Uniform Transmission Rates | C18: Unit | E18: Effective January 1, 2011 | G18: Effective January 1, 2012 | I18: Effective January 1, 2013
B20: Rate Description | E20: Rate | G20: Rate | I20: Rate
B22: Network Service Rate | C22: kW | E22: 3.22 | G22: 3.57 | I22: 3.57
B24: Line Connection Service Rate | C24: kW | E24: 0.79 | G24: 0.8 | I24: 0.8
B26: Transformation Connection Service Rate | C26: kW | E26: 1.77 | G26: 1.86 | I26: 1.86
B29: Hydro One Sub-Transmission Rates | C29: Unit | E29: Effective January 1, 2011 | G29: Effective January 1, 2012 | I29: Effective January 1, 2013
B33: Rate Description | E33: Rate | G33: Rate | I33: Rate
B35: Network Service Rate | C35: kW | E35: 2.65 | G35: 2.65 | I35: 2.65
B37: Line Connection Service Rate | C37: kW | E37: 0.64 | G37: 0.64 | I37: 0.64
B39: Transformation Connection Service Rate | C39: kW | E39: 1.5 | G39: 1.5 | I39: 1.5
B41: Both Line and Transformation Connection Service Rate | C41: kW | E41: =E39+E37 -> 2.14 | G41: =G39+G37 -> 2.14 | I41: =I39+I37 -> 2.14
B45: Hydro One Sub-Transmission Rate Rider 6A | C45: Unit | E45: Effective January 1, 2011 | G45: Effective January 1, 2012 | I45: Effective January 1, 2013
B47: Rate Description | E47: Rate | G47: Rate | I47: Rate
B49: RSVA Transmission network – 4714 – which affects 1584 | C49: kW | E49: 0.047 | G49: 0 | I49: 0
B51: RSVA Transmission connection – 4716 – which affects 1586 | C51: kW | E51: -0.025 | G51: 0 | I51: 0
B53: RSVA LV – 4750 – which affects 1550 | C53: kW | E53: 0.058 | G53: 0 | I53: 0
B55: RARA 1 – 2252 – which affects 1590 | C55: kW | E55: -0.075 | G55: 0 | I55: 0
B57: Hydro One Sub-Transmission Rate Rider 6A | C57: kW | E57: =SUM(E49:E55) -> 0.005 | G57: =SUM(G49:G55) -> 0 | I57: =SUM(I49:I55) -> 0

Sheet 6. Historical Wholesale
B21: IESO | D21: Network | H21: Line Connection | L21: Transformation Connection | P21: Total Line
B22: Month | D22: Units Billed | E22: Rate | F22: Amount | H22: Units Billed | I22: Rate | J22: Amount | L22: Units Billed | M22: Rate | N22: Amount | P22: Amount
B24: January | D24: =54177-1947.13 -> 52229.87 | E24: =IF(D24<>0,F24/D24,0) -> 3.219995378 | F24: =174449.94-6270 -> 168179.94 | H24: =56710-2021.23 -> 54688.77 | I24: =IF(H24<>0,J24/H24,0) -> 0.7899958255 | J24: =44800.9-1597 -> 43203.9 | L24: =56710-2021.23 -> 54688.77 | M24: =IF(L24<>0,N24/L24,0) -> 1.769992267 | N24: =100376.7-3578 -> 96798.7 | P24: =J24+N24 -> 140002.6
B25: February | D25: =55686-7051-519.47 -> 48115.53 | E25: 3.219993628 | F25: =179308.92-(7051*3.22)-1673 -> 154931.7 | H25: =60305-7051-556.43 -> 52697.57 | I25: 0.7899920243 | J25: =47640.95-(7051*0.79)-440 -> 41630.66 | L25: =60305-7051-556.43 -> 52697.57 | M25: 1.769997744 | N25: =106739.85-(7051*1.77)-985 -> 93274.58 | P25: 134905.24
B26: March | D26: =47787-530.23 -> 47256.77 | E26: 3.220007207 | F26: =153874.14-1707 -> 152167.14 | H26: =48757-530.23 -> 48226.77 | I26: 0.789997547 | J26: =38518.03-419 -> 38099.03 | L26: =48757-530.23 -> 48226.77 | M26: 1.76998978 | N26: =86299.89-939 -> 85360.89 | P26: 123459.92
B27: April | D27: =40072-1672.21 -> 38399.79 | E27: 3.219987401 | F27: =129031.84-5385 -> 123646.84 | H27: =49295-9543.07 -> 39751.93 | I27: 0.7900006364 | J27: =38943.05-7539 -> 31404.05 | L27: =49295-9543.07 -> 39751.93 | M27: 1.770005884 | N27: =87252.15-16891 -> 70361.15 | P27: 101765.2
B28: May | D28: =54420-420.94 -> 53999.06 | E28: 3.220009756 | F28: =175232.5-1355 -> 173877.5 | H28: =59109-9110.27 -> 49998.73 | I28: 0.7900022661 | J28: =46696.11-7197 -> 39499.11 | L28: =59109-9110.27 -> 49998.73 | M28: 1.770003558 | N28: =104622.93-16125 -> 88497.93 | P28: 127997.04
B29: June | D29: =56620-388.83 -> 56231.17 | E29: 3.22000058 | F29: =182316.4-1252 -> 181064.4 | H29: =59892-423.39 -> 59468.61 | I29: 0.7900080395 | J29: =47314.68-334 -> 46980.68 | L29: =59892-423.39 -> 59468.61 | M29: 1.770006731 | N29: =106008.84-749 -> 105259.84 | P29: 152240.52
B30: July | D30: =73082-415.11 -> 72666.89 | E30: 3.219995241 | F30: =235324.04-1337 -> 233987.04 | H30: =79084-10058.5 -> 69025.5 | I30: 0.7900031148 | J30: =62476.36-7946 -> 54530.36 | L30: =79084-10058.5 -> 69025.5 | M30: 1.769993408 | N30: =139978.68-17804 -> 122174.68 | P30: 176705.04
B31: August | D31: =59927-8370.61 -> 51556.39 | E31: 3.220007064 | F31: =192964.94-26953 -> 166011.94 | H31: =71750-9588.91 -> 62161.09 | I31: 0.7900038432 | J31: =56682.5-7575 -> 49107.5 | L31: =71750-9588.91 -> 62161.09 | M31: 1.770005964 | N31: =126997.5-16972 -> 110025.5 | P31: 159133
B32: September | D32: =57684-8204.19 -> 49479.81 | E32: 3.220009939 | F32: =185742.48-26417 -> 159325.48 | H32: =71198-9747.03 -> 61450.97 | I32: 0.7900025012 | J32: =56246.42-7700 -> 48546.42 | L32: =71198-9747.03 -> 61450.97 | M32: 1.770003956 | N32: =126020.46-17252 -> 108768.46 | P32: 157314.88
B33: October | D33: =46834-420.98 -> 46413.02 | E33: 3.219990425 | F33: =150805.48-1356 -> 149449.48 | H33: =53864-9360.37 -> 44503.63 | I33: 0.789993086 | J33: =42552.56-7395 -> 35157.56 | L33: =53864-9360.37 -> 44503.63 | M33: 1.76999674 | N33: =95339.28-16568 -> 78771.28 | P33: 113928.84
B34: November | D34: =51558-483.44 -> 51074.56 | E34: 3.219993672 | F34: =166016.76-1557 -> 164459.76 | H34: =57091-9485.9 -> 47605.1 | I34: 0.7899970801 | J34: =45101.89-7494 -> 37607.89 | L34: =57091-9485.9 -> 47605.1 | M34: 1.770000903 | N34: =101051.07-16790 -> 84261.07 | P34: 121868.96
B35: December | D35: =51264-450.56 -> 50813.44 | E35: 3.219996127 | F35: =165070.08-1451 -> 163619.08 | H35: =55020-450.56 -> 54569.44 | I35: 0.7899989445 | J35: =43465.8-356 -> 43109.8 | L35: =55020-450.56 -> 54569.44 | M35: 1.770009001 | N35: =97385.4-797 -> 96588.4 | P35: 139698.2
B37: Total | D37: =SUM(D24:D35) -> 618236.3 | E37: =IF(D37<>0,F37/D37,0) -> 3.219999052 | F37: =SUM(F24:F35) -> 1990720.3 | H37: =SUM(H24:H35) -> 644148.11 | I37: =IF(H37<>0,J37/H37,0) -> 0.7899999272 | J37: =SUM(J24:J35) -> 508876.96 | L37: =SUM(L24:L35) -> 644148.11 | M37: =IF(L37<>0,N37/L37,0) -> 1.770000505 | N37: =SUM(N24:N35) -> 1140142.48 | P37: =SUM(P24:P35) -> 1649019.44
B39: Hydro One | D39: Network | H39: Line Connection | L39: Transformation Connection | P39: Total Line
B41: Month | D41: Units Billed | E41: Rate | F41: Amount | H41: Units Billed | I41: Rate | J41: Amount | L41: Units Billed | M41: Rate | N41: Amount | P41: Amount
B43: January | D43: =(1512+18660+2422)-16784 -> 5810 | E43: =IF(D43<>0,F43/D43,0) -> 2.649931153 | F43: =59874.1-44478 -> 15396.1 | H43: =(1512+18660+2483)-16910.37 -> 5744.63 | I43: =IF(H43<>0,J43/H43,0) -> 0.639999443 | J43: =ROUND(H43*0.64,2) -> 3676.56 | L43: =(1512+18660+2483)-16910.37 -> 5744.63 | M43: =IF(L43<>0,N43/L43,0) -> 1.50000087 | N43: =ROUND(L43*1.5,2) -> 8616.95 | P43: =J43+N43 -> 12293.51
B44: February | D44: =(1462+17798+2264)-16796.71 -> 4727.29 | E44: 2.650059548 | F44: =57038.6-44511 -> 12527.6 | H44: =(1462+17811+2267)-16803.61 -> 4736.39 | I44: 0.6400000845 | J44: =ROUND(H44*0.64,2) -> 3031.29 | L44: =(1462+17811+2267)-16803.61 -> 4736.39 | M44: 1.500001056 | N44: =ROUND(L44*1.5,2) -> 7104.59 | P44: 10135.88
B45: March | D45: =(1286+16870+2185)-16039.86 -> 4301.14 | E45: 2.649913744 | F45: =53903.65-42506 -> 11397.65 | H45: =(1286+16870+2330)-16089.43 -> 4396.57 | I45: 0.6399989082 | J45: 2813.8 | L45: =(1286+16870+2330)-16089.43 -> 4396.57 | M45: 1.500001137 | N45: 6594.86 | P45: 9408.66
B46: April | D46: =(1120+16698+2109)-16316.66 -> 3610.34 | E46: 2.65004127 | F46: =52806.55-43239 -> 9567.55 | H46: =(1120+16698+2299)-16961.85 -> 3155.15 | I46: 0.6400012678 | J46: 2019.3 | L46: =(1120+16698+2299)-16961.85 -> 3155.15 | M46: 1.500001585 | N46: 4732.73 | P46: 6752.03
B47: May | D47: =(1241+16986+528)-15599.86 -> 3155.14 | E47: 2.649882414 | F47: =49700.75-41340 -> 8360.75 | H47: =(1241+16986+668)-15611.93 -> 3283.07 | I47: 0.639998538 | J47: 2101.16 | L47: =(1241+16986+668)-15611.93 -> 3283.07 | M47: 1.500001523 | N47: 4924.61 | P47: 7025.77
B48: June | D48: =(1232+18146+633)-15787.57 -> 4223.43 | E48: 2.650014325 | F48: =53029.15-41837 -> 11192.15 | H48: =(1232+18146+650)-15827.01 -> 4200.99 | I48: 0.6399991431 | J48: 2688.63 | L48: =(1232+18146+650)-15827.01 -> 4200.99 | M48: 1.50000119 | N48: 6301.49 | P48: 8990.12
B49: July | D49: =(1426+19245+827)-16629.32 -> 4868.68 | E49: 2.649937971 | F49: =56969.7-44068 -> 12901.7 | H49: =(1426+19245+827)-16646.22 -> 4851.78 | I49: 0.6400001649 | J49: 3105.14 | L49: =(1426+19245+827)-16646.22 -> 4851.78 | M49: 1.5 | N49: 7277.67 | P49: 10382.81
B50: August | D50: =(1051+17388+583)-15581.78 -> 3440.22 | E50: 2.649917738 | F50: =50408.3-41292 -> 9116.3 | H50: =(1051+17388+621)-16045.86 -> 3014.14 | I50: 0.6400001327 | J50: 1929.05 | L50: =(1051+17388+621)-16045.86 -> 3014.14 | M50: 1.5 | N50: 4521.21 | P50: 6450.26
B51: September | D51: =(1010+16257+442)-15831.41 -> 1877.59 | E51: 2.650125959 | F51: =46928.85-41953 -> 4975.85 | H51: =(1010+16257+487)-15998.73 -> 1755.27 | I51: 0.6399984048 | J51: 1123.37 | L51: =(1010+16257+487)-15998.73 -> 1755.27 | M51: 1.500002849 | N51: 2632.91 | P51: 3756.28
B52: October | D52: =(939+16062+507)-15326.96 -> 2181.04 | E52: 2.650203573 | F52: =46396.2-40616 -> 5780.2 | H52: =(939+16062+516)-15428.56 -> 2088.44 | I52: 0.6399992339 | J52: 1336.6 | L52: =(939+16062+516)-15428.56 -> 2088.44 | M52: 1.5 | N52: 3132.66 | P52: 4469.26
B53: November | D53: =(967+17642+564)-15768.2 -> 3404.8 | E53: 2.650052867 | F53: =50808.9-41786 -> 9022.9 | H53: =(967+17642+564)-15796.37 -> 3376.63 | I53: 0.6399990523 | J53: 2161.04 | L53: =(967+17642+564)-15796.37 -> 3376.63 | M53: 1.500001481 | N53: 5064.95 | P53: 7225.99
B54: December | D54: =(1041+18000+583)-16331.96 -> 3292.04 | E54: 2.650150059 | F54: =52004.4-43280 -> 8724.4 | H54: =(1041+18000+597)-16411.68 -> 3226.32 | I54: 0.6399985122 | J54: 2064.84 | L54: =(1041+18000+597)-16411.68 -> 3226.32 | M54: 1.5 | N54: 4839.48 | P54: 6904.32
B56: Total | D56: =SUM(D43:D54) -> 44891.71 | E56: =IF(D56<>0,F56/D56,0) -> 2.65000264 | F56: =SUM(F43:F54) -> 118963.15 | H56: =SUM(H43:H54) -> 43829.38 | I56: =IF(H56<>0,J56/H56,0) -> 0.6399994707 | J56: =SUM(J43:J54) -> 28050.78 | L56: =SUM(L43:L54) -> 43829.38 | M56: =IF(L56<>0,N56/L56,0) -> 1.500000913 | N56: =SUM(N43:N54) -> 65744.11 | P56: =SUM(P43:P54) -> 93794.89
B58: Total | D58: Network | H58: Line Connection | L58: Transformation Connection | P58: Total Line
B60: Month | D60: Units Billed | E60: Rate | F60: Amount | H60: Units Billed | I60: Rate | J60: Amount | L60: Units Billed | M60: Rate | N60: Amount | P60: Amount
B62: January | D62: =D24+D43 -> 58039.87 | E62: =IF(D62<>0,F62/D62,0) -> 3.162929896 | F62: =F24+F43 -> 183576.04 | H62: =H24+H43 -> 60433.4 | I62: =IF(H62<>0,J62/H62,0) -> 0.7757375888 | J62: =J24+J43 -> 46880.46 | L62: =L24+L43 -> 60433.4 | M62: =IF(L62<>0,N62/L62,0) -> 1.74432764 | N62: =N24+N43 -> 105415.65 | P62: =J62+N62 -> 152296.11
B63: February | D63: 52842.82 | E63: 3.169007634 | F63: 167459.3 | H63: 57433.96 | I63: 0.7776226818 | J63: 44661.95 | L63: 57433.96 | M63: 1.747732004 | N63: 100379.17 | P63: 145041.12
B64: March | D64: 51557.91 | E64: 3.17244803 | F64: 163564.79 | H64: 52623.34 | I64: 0.7774654744 | J64: 40912.83 | L64: 52623.34 | M64: 1.747432793 | N64: 91955.75 | P64: 132868.58
B65: April | D65: 42010.13 | E65: 3.171006374 | F65: 133214.39 | H65: 42907.08 | I65: 0.7789705102 | J65: 33423.35 | L65: 42907.08 | M65: 1.750151257 | N65: 75093.88 | P65: 108517.23
B66: May | D66: 57154.2 | E66: 3.188536451 | F66: 182238.25 | H66: 53281.8 | I66: 0.7807594713 | J66: 41600.27 | L66: 53281.8 | M66: 1.753366816 | N66: 93422.54 | P66: 135022.81
B67: June | D67: 60454.6 | E67: 3.180180664 | F67: 192256.55 | H67: 63669.6 | I67: 0.7801102881 | J67: 49669.31 | L67: 63669.6 | M67: 1.75219147 | N67: 111561.33 | P67: 161230.64
B68: July | D68: 77535.57 | E68: 3.184199716 | F68: 246888.74 | H68: 73877.28 | I68: 0.7801518951 | J68: 57635.5 | L68: 73877.28 | M68: 1.752261994 | N68: 129452.35 | P68: 187087.85
B69: August | D69: 54996.61 | E69: 3.18434609 | F69: 175128.24 | H69: 65175.23 | I69: 0.7830666651 | J69: 51036.55 | L69: 65175.23 | M69: 1.757519076 | N69: 114546.71 | P69: 165583.26
B70: September | D70: 51357.4 | E70: 3.199175387 | F70: 164301.33 | H70: 63206.24 | I70: 0.7858368098 | J70: 49669.79 | L70: 63206.24 | M70: 1.762505885 | N70: 111401.37 | P70: 161071.16
B71: October | D71: 48594.06 | E71: 3.194416766 | F71: 155229.68 | H71: 46592.07 | I71: 0.783269771 | J71: 36494.16 | L71: 46592.07 | M71: 1.757894423 | N71: 81903.94 | P71: 118398.1
B72: November | D72: 54479.36 | E72: 3.184374046 | F72: 173482.66 | H72: 50981.73 | I72: 0.7800623871 | J72: 39768.93 | L72: 50981.73 | M72: 1.752118259 | N72: 89326.02 | P72: 129094.95
B73: December | D73: 54105.48 | E73: 3.185323927 | F73: 172343.48 | H73: 57795.76 | I73: 0.7816255033 | J73: 45174.64 | L73: 57795.76 | M73: 1.754936348 | N73: 101427.88 | P73: 146602.52
B75: Total | D75: =SUM(D62:D73) -> 663128.01 | E75: =IF(D75<>0,F75/D75,0) -> 3.181412063 | F75: =SUM(F62:F73) -> 2109683.45 | H75: =SUM(H62:H73) -> 687977.49 | I75: =IF(H75<>0,J75/H75,0) -> 0.7804437613 | J75: =SUM(J62:J73) -> 536927.74 | L75: =SUM(L62:L73) -> 687977.49 | M75: =IF(L75<>0,N75/L75,0) -> 1.752799485 | N75: =SUM(N62:N73) -> 1205886.59 | P75: =SUM(P62:P73) -> 1742814.33

Sheet 7. Current Wholesale
B13: The purpose of this sheet is to calculate the expected billing when current 2012 Uniform Transmission Rates are applied against historical 2011 transmission units.
B20: IESO | D20: Network | H20: Line Connection | L20: Transformation Connection | P20: Total Line
B22: Month | D22: Units Billed | E22: Rate | F22: Amount | H22: Units Billed | I22: Rate | J22: Amount | L22: Units Billed | M22: Rate | N22: Amount | P22: Amount
B24: January | D24: ='6. Historical Wholesale'!D24 -> 52229.87 | E24: ='5. UTRs and Sub-Transmission'!G22 -> 3.57 | F24: =D24*E24 -> 186460.6359 | H24: ='6. Historical Wholesale'!H24 -> 54688.77 | I24: ='5. UTRs and Sub-Transmission'!G24 -> 0.8 | J24: =H24*I24 -> 43751.016 | L24: ='6. Historical Wholesale'!L24 -> 54688.77 | M24: ='5. UTRs and Sub-Transmission'!G26 -> 1.86 | N24: =L24*M24 -> 101721.1122 | P24: =J24+N24 -> 145472.1282
B25: February | D25: ='6. Historical Wholesale'!D25 -> 48115.53 | E25: =E24 -> 3.57 | F25: =D25*E25 -> 171772.4421 | H25: ='6. Historical Wholesale'!H25 -> 52697.57 | I25: =I24 -> 0.8 | J25: =H25*I25 -> 42158.056 | L25: ='6. Historical Wholesale'!L25 -> 52697.57 | M25: =M24 -> 1.86 | N25: =L25*M25 -> 98017.4802 | P25: 140175.5362
B26: March | D26: ='6. Historical Wholesale'!D26 -> 47256.77 | E26: =E25 -> 3.57 | F26: 168706.6689 | H26: ='6. Historical Wholesale'!H26 -> 48226.77 | I26: =I25 -> 0.8 | J26: 38581.416 | L26: ='6. Historical Wholesale'!L26 -> 48226.77 | M26: =M25 -> 1.86 | N26: 89701.7922 | P26: 128283.2082
B27: April | D27: ='6. Historical Wholesale'!D27 -> 38399.79 | E27: 3.57 | F27: 137087.2503 | H27: ='6. Historical Wholesale'!H27 -> 39751.93 | I27: 0.8 | J27: 31801.544 | L27: ='6. Historical Wholesale'!L27 -> 39751.93 | M27: 1.86 | N27: 73938.5898 | P27: 105740.1338
B28: May | D28: ='6. Historical Wholesale'!D28 -> 53999.06 | E28: 3.57 | F28: 192776.6442 | H28: ='6. Historical Wholesale'!H28 -> 49998.73 | I28: 0.8 | J28: 39998.984 | L28: ='6. Historical Wholesale'!L28 -> 49998.73 | M28: 1.86 | N28: 92997.6378 | P28: 132996.6218
B29: June | D29: ='6. Historical Wholesale'!D29 -> 56231.17 | E29: 3.57 | F29: 200745.2769 | H29: ='6. Historical Wholesale'!H29 -> 59468.61 | I29: 0.8 | J29: 47574.888 | L29: ='6. Historical Wholesale'!L29 -> 59468.61 | M29: 1.86 | N29: 110611.6146 | P29: 158186.5026
B30: July | D30: ='6. Historical Wholesale'!D30 -> 72666.89 | E30: 3.57 | F30: 259420.7973 | H30: ='6. Historical Wholesale'!H30 -> 69025.5 | I30: 0.8 | J30: 55220.4 | L30: ='6. Historical Wholesale'!L30 -> 69025.5 | M30: 1.86 | N30: 128387.43 | P30: 183607.83
B31: August | D31: ='6. Historical Wholesale'!D31 -> 51556.39 | E31: 3.57 | F31: 184056.3123 | H31: ='6. Historical Wholesale'!H31 -> 62161.09 | I31: 0.8 | J31: 49728.872 | L31: ='6. Historical Wholesale'!L31 -> 62161.09 | M31: 1.86 | N31: 115619.6274 | P31: 165348.4994
B32: September | D32: ='6. Historical Wholesale'!D32 -> 49479.81 | E32: 3.57 | F32: 176642.9217 | H32: ='6. Historical Wholesale'!H32 -> 61450.97 | I32: 0.8 | J32: 49160.776 | L32: ='6. Historical Wholesale'!L32 -> 61450.97 | M32: 1.86 | N32: 114298.8042 | P32: 163459.5802
B33: October | D33: ='6. Historical Wholesale'!D33 -> 46413.02 | E33: 3.57 | F33: 165694.4814 | H33: ='6. Historical Wholesale'!H33 -> 44503.63 | I33: 0.8 | J33: 35602.904 | L33: ='6. Historical Wholesale'!L33 -> 44503.63 | M33: 1.86 | N33: 82776.7518 | P33: 118379.6558
B34: November | D34: ='6. Historical Wholesale'!D34 -> 51074.56 | E34: 3.57 | F34: 182336.1792 | H34: ='6. Historical Wholesale'!H34 -> 47605.1 | I34: 0.8 | J34: 38084.08 | L34: ='6. Historical Wholesale'!L34 -> 47605.1 | M34: 1.86 | N34: 88545.486 | P34: 126629.566
B35: December | D35: ='6. Historical Wholesale'!D35 -> 50813.44 | E35: 3.57 | F35: 181403.9808 | H35: ='6. Historical Wholesale'!H35 -> 54569.44 | I35: 0.8 | J35: 43655.552 | L35: ='6. Historical Wholesale'!L35 -> 54569.44 | M35: 1.86 | N35: 101499.1584 | P35: 145154.7104
B37: Total | D37: =SUM(D24:D35) -> 618236.3 | E37: =IF(D37<>0,F37/D37,0) -> 3.57 | F37: =SUM(F24:F35) -> 2207103.591 | H37: =SUM(H24:H35) -> 644148.11 | I37: =IF(H37<>0,J37/H37,0) -> 0.8 | J37: =SUM(J24:J35) -> 515318.488 | L37: =SUM(L24:L35) -> 644148.11 | M37: =IF(L37<>0,N37/L37,0) -> 1.86 | N37: =SUM(N24:N35) -> 1198115.485 | P37: =SUM(P24:P35) -> 1713433.973
B39: Hydro One | D39: Network | H39: Line Connection | L39: Transformation Connection | P39: Total Line
B41: Month | D41: Units Billed | E41: Rate | F41: Amount | H41: Units Billed | I41: Rate | J41: Amount | L41: Units Billed | M41: Rate | N41: Amount | P41: Amount
B43: January | D43: ='6. Historical Wholesale'!D43 -> 5810 | E43: ='5. UTRs and Sub-Transmission'!G35+'5. UTRs and Sub-Transmission'!G49 -> 2.65 | F43: =D43*E43 -> 15396.5 | H43: ='6. Historical Wholesale'!H43 -> 5744.63 | I43: ='5. UTRs and Sub-Transmission'!G37+'5. UTRs and Sub-Transmission'!G51 -> 0.64 | J43: =H43*I43 -> 3676.5632 | L43: ='6. Historical Wholesale'!L43 -> 5744.63 | M43: ='5. UTRs and Sub-Transmission'!G39 -> 1.5 | N43: =L43*M43 -> 8616.945 | P43: =J43+N43 -> 12293.5082
B44: February | D44: ='6. Historical Wholesale'!D44 -> 4727.29 | E44: =E43 -> 2.65 | F44: =D44*E44 -> 12527.3185 | H44: ='6. Historical Wholesale'!H44 -> 4736.39 | I44: =I43 -> 0.64 | J44: =H44*I44 -> 3031.2896 | L44: ='6. Historical Wholesale'!L44 -> 4736.39 | M44: =M43 -> 1.5 | N44: =L44*M44 -> 7104.585 | P44: 10135.8746
B45: March | D45: ='6. Historical Wholesale'!D45 -> 4301.14 | E45: =E44 -> 2.65 | F45: 11398.021 | H45: ='6. Historical Wholesale'!H45 -> 4396.57 | I45: =I44 -> 0.64 | J45: 2813.8048 | L45: ='6. Historical Wholesale'!L45 -> 4396.57 | M45: =M44 -> 1.5 | N45: 6594.855 | P45: 9408.6598
B46: April | D46: ='6. Historical Wholesale'!D46 -> 3610.34 | E46: 2.65 | F46: 9567.401 | H46: ='6. Historical Wholesale'!H46 -> 3155.15 | I46: 0.64 | J46: 2019.296 | L46: ='6. Historical Wholesale'!L46 -> 3155.15 | M46: =M45 -> 1.5 | N46: 4732.725 | P46: 6752.021
B47: May | D47: ='6. Historical Wholesale'!D47 -> 3155.14 | E47: 2.65 | F47: 8361.121 | H47: ='6. Historical Wholesale'!H47 -> 3283.07 | I47: 0.64 | J47: 2101.1648 | L47: ='6. Historical Wholesale'!L47 -> 3283.07 | M47: 1.5 | N47: 4924.605 | P47: 7025.7698
B48: June | D48: ='6. Historical Wholesale'!D48 -> 4223.43 | E48: 2.65 | F48: 11192.0895 | H48: ='6. Historical Wholesale'!H48 -> 4200.99 | I48: 0.64 | J48: 2688.6336 | L48: ='6. Historical Wholesale'!L48 -> 4200.99 | M48: 1.5 | N48: 6301.485 | P48: 8990.1186
B49: July | D49: ='6. Historical Wholesale'!D49 -> 4868.68 | E49: 2.65 | F49: 12902.002 | H49: ='6. Historical Wholesale'!H49 -> 4851.78 | I49: 0.64 | J49: 3105.1392 | L49: ='6. Historical Wholesale'!L49 -> 4851.78 | M49: 1.5 | N49: 7277.67 | P49: 10382.8092
B50: August | D50: ='6. Historical Wholesale'!D50 -> 3440.22 | E50: 2.65 | F50: 9116.583 | H50: ='6. Historical Wholesale'!H50 -> 3014.14 | I50: 0.64 | J50: 1929.0496 | L50: ='6. Historical Wholesale'!L50 -> 3014.14 | M50: 1.5 | N50: 4521.21 | P50: 6450.2596
B51: September | D51: ='6. Historical Wholesale'!D51 -> 1877.59 | E51: 2.65 | F51: 4975.6135 | H51: ='6. Historical Wholesale'!H51 -> 1755.27 | I51: 0.64 | J51: 1123.3728 | L51: ='6. Historical Wholesale'!L51 -> 1755.27 | M51: 1.5 | N51: 2632.905 | P51: 3756.2778
B52: October | D52: ='6. Historical Wholesale'!D52 -> 2181.04 | E52: 2.65 | F52: 5779.756 | H52: ='6. Historical Wholesale'!H52 -> 2088.44 | I52: 0.64 | J52: 1336.6016 | L52: ='6. Historical Wholesale'!L52 -> 2088.44 | M52: 1.5 | N52: 3132.66 | P52: 4469.2616
B53: November | D53: ='6. Historical Wholesale'!D53 -> 3404.8 | E53: 2.65 | F53: 9022.72 | H53: ='6. Historical Wholesale'!H53 -> 3376.63 | I53: 0.64 | J53: 2161.0432 | L53: ='6. Historical Wholesale'!L53 -> 3376.63 | M53: 1.5 | N53: 5064.945 | P53: 7225.9882
B54: December | D54: ='6. Historical Wholesale'!D54 -> 3292.04 | E54: 2.65 | F54: 8723.906 | H54: ='6. Historical Wholesale'!H54 -> 3226.32 | I54: 0.64 | J54: 2064.8448 | L54: ='6. Historical Wholesale'!L54 -> 3226.32 | M54: 1.5 | N54: 4839.48 | P54: 6904.3248
B56: Total | D56: =SUM(D43:D54) -> 44891.71 | E56: =IF(D56<>0,F56/D56,0) -> 2.65 | F56: =SUM(F43:F54) -> 118963.0315 | H56: =SUM(H43:H54) -> 43829.38 | I56: =IF(H56<>0,J56/H56,0) -> 0.64 | J56: =SUM(J43:J54) -> 28050.8032 | L56: =SUM(L43:L54) -> 43829.38 | M56: =IF(L56<>0,N56/L56,0) -> 1.5 | N56: =SUM(N43:N54) -> 65744.07 | P56: =SUM(P43:P54) -> 93794.8732
B58: Total | D58: Network | H58: Line Connection | L58: Transformation Connection | P58: Total Line
B60: Month | D60: Units Billed | E60: Rate | F60: Amount | H60: Units Billed | I60: Rate | J60: Amount | L60: Units Billed | M60: Rate | N60: Amount | P60: Amount
B62: January | D62: =D24+D43 -> 58039.87 | E62: =IF(D62<>0,F62/D62,0) -> 3.477904687 | F62: =F24+F43 -> 201857.1359 | H62: =H24+H43 -> 60433.4 | I62: =IF(H62<>0,J62/H62,0) -> 0.7847908474 | J62: =J24+J43 -> 47427.5792 | L62: =L24+L43 -> 60433.4 | M62: =IF(L62<>0,N62/L62,0) -> 1.825779407 | N62: =N24+N43 -> 110338.0572 | P62: =J62+N62 -> 157765.6364
B63: February | D63: 52842.82 | E63: 3.487697299 | F63: 184299.7606 | H63: 57433.96 | I63: 0.7868053256 | J63: 45189.3456 | L63: 57433.96 | M63: 1.830311983 | N63: 105122.0652 | P63: 150311.4108
B64: March | D64: 51557.91 | E64: 3.493250403 | F64: 180104.6899 | H64: 52623.34 | I64: 0.7866323346 | J64: 41395.2208 | L64: 52623.34 | M64: 1.829922753 | N64: 96296.6472 | P64: 137691.868
B65: April | D65: 42010.13 | E65: 3.490935432 | F65: 146654.6513 | H65: 42907.08 | I65: 0.7882344825 | J65: 33820.84 | L65: 42907.08 | M65: 1.833527586 | N65: 78671.3148 | P65: 112492.1548
B66: May | D66: 57154.2 | E66: 3.519212327 | F66: 201137.7652 | H66: 53281.8 | I66: 0.790141264 | J66: 42100.1488 | L66: 53281.8 | M66: 1.837817844 | N66: 97922.2428 | P66: 140022.3916
B67: June | D67: 60454.6 | E67: 3.50572771 | F67: 211937.3664 | H67: 63669.6 | I67: 0.7894430246 | J67: 50263.5216 | L67: 63669.6 | M67: 1.836246805 | N67: 116913.0996 | P67: 167176.6212
B68: July | D68: 77535.57 | E68: 3.512230571 | F68: 272322.7993 | H68: 73877.28 | I68: 0.789492239 | J68: 58325.5392 | L68: 73877.28 | M68: 1.836357538 | N68: 135665.1 | P68: 193990.6392
B69: August | D69: 54996.61 | E69: 3.512450955 | F69: 193172.8953 | H69: 65175.23 | I69: 0.7926005263 | J69: 51657.9216 | L69: 65175.23 | M69: 1.843351184 | N69: 120140.8374 | P69: 171798.759
B70: September | D70: 51357.4 | E70: 3.536365455 | F70: 181618.5352 | H70: 63206.24 | I70: 0.7955567172 | J70: 50284.1488 | L70: 63206.24 | M70: 1.850002614 | N70: 116931.7092 | P70: 167215.858
B71: October | D71: 48594.06 | E71: 3.528707776 | F71: 171474.2374 | H71: 46592.07 | I71: 0.7928281701 | J71: 36939.5056 | L71: 46592.07 | M71: 1.843863383 | N71: 85909.4118 | P71: 122848.9174
B72: November | D72: 54479.36 | E72: 3.512502702 | F72: 191358.8992 | H72: 50981.73 | I72: 0.7894028547 | J72: 40245.1232 | L72: 50981.73 | M72: 1.836156423 | N72: 93610.431 | P72: 133855.5542
B73: December | D73: 54105.48 | E73: 3.514022735 | F73: 190127.8868 | H73: 57795.76 | I73: 0.7910683552 | J73: 45720.3968 | L73: 57795.76 | M73: 1.839903799 | N73: 106338.6384 | P73: 152059.0352
B75: Total | D75: =SUM(D62:D73) -> 663128.01 | E75: =IF(D75<>0,F75/D75,0) -> 3.507718853 | F75: =SUM(F62:F73) -> 2326066.623 | H75: =SUM(H62:H73) -> 687977.49 | I75: =IF(H75<>0,J75/H75,0) -> 0.7898067874 | J75: =SUM(J62:J73) -> 543369.2912 | L75: =SUM(L62:L73) -> 687977.49 | M75: =IF(L75<>0,N75/L75,0) -> 1.837065272 | N75: =SUM(N62:N73) -> 1263859.555 | P75: =SUM(P62:P73) -> 1807228.846

Sheet 8. Forecast Wholesale
B13: The purpose of this sheet is to calculate the expected billing when forecasted 2013 Uniform Transmission Rates are applied against historical 2011 transmission units.
B20: IESO | D20: Network | H20: Line Connection | L20: Transformation Connection | P20: Total Line
B22: Month | D22: Units Billed | E22: Rate | F22: Amount | H22: Units Billed | I22: Rate | J22: Amount | L22: Units Billed | M22: Rate | N22: Amount | P22: Amount
B24: January | D24: ='6. Historical Wholesale'!D24 -> 52229.87 | E24: ='5. UTRs and Sub-Transmission'!I22 -> 3.57 | F24: =D24*E24 -> 186460.6359 | H24: ='6. Historical Wholesale'!H24 -> 54688.77 | I24: ='5. UTRs and Sub-Transmission'!I24 -> 0.8 | J24: =H24*I24 -> 43751.016 | L24: ='6. Historical Wholesale'!L24 -> 54688.77 | M24: ='5. UTRs and Sub-Transmission'!I26 -> 1.86 | N24: =L24*M24 -> 101721.1122 | P24: =J24+N24 -> 145472.1282
B25: February | D25: ='6. Historical Wholesale'!D25 -> 48115.53 | E25: =E24 -> 3.57 | F25: 171772.4421 | H25: ='6. Historical Wholesale'!H25 -> 52697.57 | I25: =I24 -> 0.8 | J25: 42158.056 | L25: ='6. Historical Wholesale'!L25 -> 52697.57 | M25: =M24 -> 1.86 | N25: 98017.4802 | P25: 140175.5362
B26: March | D26: ='6. Historical Wholesale'!D26 -> 47256.77 | E26: 3.57 | F26: 168706.6689 | H26: ='6. Historical Wholesale'!H26 -> 48226.77 | I26: 0.8 | J26: 38581.416 | L26: ='6. Historical Wholesale'!L26 -> 48226.77 | M26: 1.86 | N26: 89701.7922 | P26: 128283.2082
B27: April | D27: ='6. Historical Wholesale'!D27 -> 38399.79 | E27: 3.57 | F27: 137087.2503 | H27: ='6. Historical Wholesale'!H27 -> 39751.93 | I27: 0.8 | J27: 31801.544 | L27: ='6. Historical Wholesale'!L27 -> 39751.93 | M27: 1.86 | N27: 73938.5898 | P27: 105740.1338
B28: May | D28: ='6. Historical Wholesale'!D28 -> 53999.06 | E28: 3.57 | F28: 192776.6442 | H28: ='6. Historical Wholesale'!H28 -> 49998.73 | I28: 0.8 | J28: 39998.984 | L28: ='6. Historical Wholesale'!L28 -> 49998.73 | M28: 1.86 | N28: 92997.6378 | P28: 132996.6218
B29: June | D29: ='6. Historical Wholesale'!D29 -> 56231.17 | E29: 3.57 | F29: 200745.2769 | H29: ='6. Historical Wholesale'!H29 -> 59468.61 | I29: 0.8 | J29: 47574.888 | L29: ='6. Historical Wholesale'!L29 -> 59468.61 | M29: 1.86 | N29: 110611.6146 | P29: 158186.5026
B30: July | D30: ='6. Historical Wholesale'!D30 -> 72666.89 | E30: 3.57 | F30: 259420.7973 | H30: ='6. Historical Wholesale'!H30 -> 69025.5 | I30: 0.8 | J30: 55220.4 | L30: ='6. Historical Wholesale'!L30 -> 69025.5 | M30: 1.86 | N30: 128387.43 | P30: 183607.83
B31: August | D31: ='6. Historical Wholesale'!D31 -> 51556.39 | E31: 3.57 | F31: 184056.3123 | H31: ='6. Historical Wholesale'!H31 -> 62161.09 | I31: 0.8 | J31: 49728.872 | L31: ='6. Historical Wholesale'!L31 -> 62161.09 | M31: 1.86 | N31: 115619.6274 | P31: 165348.4994
B32: September | D32: ='6. Historical Wholesale'!D32 -> 49479.81 | E32: 3.57 | F32: 176642.9217 | H32: ='6. Historical Wholesale'!H32 -> 61450.97 | I32: 0.8 | J32: 49160.776 | L32: ='6. Historical Wholesale'!L32 -> 61450.97 | M32: 1.86 | N32: 114298.8042 | P32: 163459.5802
B33: October | D33: ='6. Historical Wholesale'!D33 -> 46413.02 | E33: 3.57 | F33: 165694.4814 | H33: ='6. Historical Wholesale'!H33 -> 44503.63 | I33: 0.8 | J33: 35602.904 | L33: ='6. Historical Wholesale'!L33 -> 44503.63 | M33: 1.86 | N33: 82776.7518 | P33: 118379.6558
B34: November | D34: ='6. Historical Wholesale'!D34 -> 51074.56 | E34: 3.57 | F34: 182336.1792 | H34: ='6. Historical Wholesale'!H34 -> 47605.1 | I34: 0.8 | J34: 38084.08 | L34: ='6. Historical Wholesale'!L34 -> 47605.1 | M34: 1.86 | N34: 88545.486 | P34: 126629.566
B35: December | D35: ='6. Historical Wholesale'!D35 -> 50813.44 | E35: 3.57 | F35: 181403.9808 | H35: ='6. Historical Wholesale'!H35 -> 54569.44 | I35: 0.8 | J35: 43655.552 | L35: ='6. Historical Wholesale'!L35 -> 54569.44 | M35: 1.86 | N35: 101499.1584 | P35: 145154.7104
B37: Total | D37: =SUM(D24:D35) -> 618236.3 | E37: =IF(D37<>0,F37/D37,0) -> 3.57 | F37: =SUM(F24:F35) -> 2207103.591 | H37: =SUM(H24:H35) -> 644148.11 | I37: =IF(H37<>0,J37/H37,0) -> 0.8 | J37: =SUM(J24:J35) -> 515318.488 | L37: =SUM(L24:L35) -> 644148.11 | M37: =IF(L37<>0,N37/L37,0) -> 1.86 | N37: =SUM(N24:N35) -> 1198115.485 | P37: =SUM(P24:P35) -> 1713433.973
B39: Hydro One | D39: Network | H39: Line Connection | L39: Transformation Connection | P39: Total Line
B41: Month | D41: Units Billed | E41: Rate | F41: Amount | H41: Units Billed | I41: Rate | J41: Amount | L41: Units Billed | M41: Rate | N41: Amount | P41: Amount
B43: January | D43: ='6. Historical Wholesale'!D43 -> 5810 | E43: ='5. UTRs and Sub-Transmission'!I35+'5. UTRs and Sub-Transmission'!I49 -> 2.65 | F43: =D43*E43 -> 15396.5 | H43: ='6. Historical Wholesale'!H43 -> 5744.63 | I43: ='5. UTRs and Sub-Transmission'!I37+'5. UTRs and Sub-Transmission'!I51 -> 0.64 | J43: =H43*I43 -> 3676.5632 | L43: ='6. Historical Wholesale'!L43 -> 5744.63 | M43: ='5. UTRs and Sub-Transmission'!I39 -> 1.5 | N43: =L43*M43 -> 8616.945 | P43: =J43+N43 -> 12293.5082
B44: February | D44: ='6. Historical Wholesale'!D44 -> 4727.29 | E44: =E43 -> 2.65 | F44: 12527.3185 | H44: ='6. Historical Wholesale'!H44 -> 4736.39 | I44: =I43 -> 0.64 | J44: 3031.2896 | L44: ='6. Historical Wholesale'!L44 -> 4736.39 | M44: =M43 -> 1.5 | N44: 7104.585 | P44: 10135.8746
B45: March | D45: ='6. Historical Wholesale'!D45 -> 4301.14 | E45: 2.65 | F45: 11398.021 | H45: ='6. Historical Wholesale'!H45 -> 4396.57 | I45: 0.64 | J45: 2813.8048 | L45: ='6. Historical Wholesale'!L45 -> 4396.57 | M45: 1.5 | N45: 6594.855 | P45: 9408.6598
B46: April | D46: ='6. Historical Wholesale'!D46 -> 3610.34 | E46: 2.65 | F46: 9567.401 | H46: ='6. Historical Wholesale'!H46 -> 3155.15 | I46: 0.64 | J46: 2019.296 | L46: ='6. Historical Wholesale'!L46 -> 3155.15 | M46: 1.5 | N46: 4732.725 | P46: 6752.021
B47: May | D47: ='6. Historical Wholesale'!D47 -> 3155.14 | E47: 2.65 | F47: 8361.121 | H47: ='6. Historical Wholesale'!H47 -> 3283.07 | I47: 0.64 | J47: 2101.1648 | L47: ='6. Historical Wholesale'!L47 -> 3283.07 | M47: 1.5 | N47: 4924.605 | P47: 7025.7698
B48: June | D48: ='6. Historical Wholesale'!D48 -> 4223.43 | E48: 2.65 | F48: 11192.0895 | H48: ='6. Historical Wholesale'!H48 -> 4200.99 | I48: 0.64 | J48: 2688.6336 | L48: ='6. Historical Wholesale'!L48 -> 4200.99 | M48: 1.5 | N48: 6301.485 | P48: 8990.1186
B49: July | D49: ='6. Historical Wholesale'!D49 -> 4868.68 | E49: 2.65 | F49: 12902.002 | H49: ='6. Historical Wholesale'!H49 -> 4851.78 | I49: 0.64 | J49: 3105.1392 | L49: ='6. Historical Wholesale'!L49 -> 4851.78 | M49: 1.5 | N49: 7277.67 | P49: 10382.8092
B50: August | D50: ='6. Historical Wholesale'!D50 -> 3440.22 | E50: 2.65 | F50: 9116.583 | H50: ='6. Historical Wholesale'!H50 -> 3014.14 | I50: 0.64 | J50: 1929.0496 | L50: ='6. Historical Wholesale'!L50 -> 3014.14 | M50: 1.5 | N50: 4521.21 | P50: 6450.2596
B51: September | D51: ='6. Historical Wholesale'!D51 -> 1877.59 | E51: 2.65 | F51: 4975.6135 | H51: ='6. Historical Wholesale'!H51 -> 1755.27 | I51: 0.64 | J51: 1123.3728 | L51: ='6. Historical Wholesale'!L51 -> 1755.27 | M51: 1.5 | N51: 2632.905 | P51: 3756.2778
B52: October | D52: ='6. Historical Wholesale'!D52 -> 2181.04 | E52: 2.65 | F52: 5779.756 | H52: ='6. Historical Wholesale'!H52 -> 2088.44 | I52: 0.64 | J52: 1336.6016 | L52: ='6. Historical Wholesale'!L52 -> 2088.44 | M52: 1.5 | N52: 3132.66 | P52: 4469.2616
B53: November | D53: ='6. Historical Wholesale'!D53 -> 3404.8 | E53: 2.65 | F53: 9022.72 | H53: ='6. Historical Wholesale'!H53 -> 3376.63 | I53: 0.64 | J53: 2161.0432 | L53: ='6. Historical Wholesale'!L53 -> 3376.63 | M53: 1.5 | N53: 5064.945 | P53: 7225.9882
B54: December | D54: ='6. Historical Wholesale'!D54 -> 3292.04 | E54: 2.65 | F54: 8723.906 | H54: ='6. Historical Wholesale'!H54 -> 3226.32 | I54: 0.64 | J54: 2064.8448 | L54: ='6. Historical Wholesale'!L54 -> 3226.32 | M54: 1.5 | N54: 4839.48 | P54: 6904.3248
B56: Total | D56: =SUM(D43:D54) -> 44891.71 | E56: =IF(D56<>0,F56/D56,0) -> 2.65 | F56: =SUM(F43:F54) -> 118963.0315 | H56: =SUM(H43:H54) -> 43829.38 | I56: =IF(H56<>0,J56/H56,0) -> 0.64 | J56: =SUM(J43:J54) -> 28050.8032 | L56: =SUM(L43:L54) -> 43829.38 | M56: =IF(L56<>0,N56/L56,0) -> 1.5 | N56: =SUM(N43:N54) -> 65744.07 | P56: =SUM(P43:P54) -> 93794.8732
B58: Total | D58: Network | H58: Line Connection | L58: Transformation Connection | P58: Total Line
B60: Month | D60: Units Billed | E60: Rate | F60: Amount | H60: Units Billed | I60: Rate | J60: Amount | L60: Units Billed | M60: Rate | N60: Amount | P60: Amount
B62: January | D62: =D24+D43 -> 58039.87 | E62: =IF(D62<>0,F62/D62,0) -> 3.477904687 | F62: =F24+F43 -> 201857.1359 | H62: =H24+H43 -> 60433.4 | I62: =IF(H62<>0,J62/H62,0) -> 0.7847908474 | J62: =J24+J43 -> 47427.5792 | L62: =L24+L43 -> 60433.4 | M62: =IF(L62<>0,N62/L62,0) -> 1.825779407 | N62: =N24+N43 -> 110338.0572 | P62: =J62+N62 -> 157765.6364
B63: February | D63: 52842.82 | E63: 3.487697299 | F63: 184299.7606 | H63: 57433.96 | I63: 0.7868053256 | J63: 45189.3456 | L63: 57433.96 | M63: 1.830311983 | N63: 105122.0652 | P63: 150311.4108
B64: March | D64: 51557.91 | E64: 3.493250403 | F64: 180104.6899 | H64: 52623.34 | I64: 0.7866323346 | J64: 41395.2208 | L64: 52623.34 | M64: 1.829922753 | N64: 96296.6472 | P64: 137691.868
B65: April | D65: 42010.13 | E65: 3.490935432 | F65: 146654.6513 | H65: 42907.08 | I65: 0.7882344825 | J65: 33820.84 | L65: 42907.08 | M65: 1.833527586 | N65: 78671.3148 | P65: 112492.1548
B66: May | D66: 57154.2 | E66: 3.519212327 | F66: 201137.7652 | H66: 53281.8 | I66: 0.790141264 | J66: 42100.1488 | L66: 53281.8 | M66: 1.837817844 | N66: 97922.2428 | P66: 140022.3916
B67: June | D67: 60454.6 | E67: 3.50572771 | F67: 211937.3664 | H67: 63669.6 | I67: 0.7894430246 | J67: 50263.5216 | L67: 63669.6 | M67: 1.836246805 | N67: 116913.0996 | P67: 167176.6212
B68: July | D68: 77535.57 | E68: 3.512230571 | F68: 272322.7993 | H68: 73877.28 | I68: 0.789492239 | J68: 58325.5392 | L68: 73877.28 | M68: 1.836357538 | N68: 135665.1 | P68: 193990.6392
B69: August | D69: 54996.61 | E69: 3.512450955 | F69: 193172.8953 | H69: 65175.23 | I69: 0.7926005263 | J69: 51657.9216 | L69: 65175.23 | M69: 1.843351184 | N69: 120140.8374 | P69: 171798.759
B70: September | D70: 51357.4 | E70: 3.536365455 | F70: 181618.5352 | H70: 63206.24 | I70: 0.7955567172 | J70: 50284.1488 | L70: 63206.24 | M70: 1.850002614 | N70: 116931.7092 | P70: 167215.858
B71: October | D71: 48594.06 | E71: 3.528707776 | F71: 171474.2374 | H71: 46592.07 | I71: 0.7928281701 | J71: 36939.5056 | L71: 46592.07 | M71: 1.843863383 | N71: 85909.4118 | P71: 122848.9174
B72: November | D72: 54479.36 | E72: 3.512502702 | F72: 191358.8992 | H72: 50981.73 | I72: 0.7894028547 | J72: 40245.1232 | L72: 50981.73 | M72: 1.836156423 | N72: 93610.431 | P72: 133855.5542
B73: December | D73: 54105.48 | E73: 3.514022735 | F73: 190127.8868 | H73: 57795.76 | I73: 0.7910683552 | J73: 45720.3968 | L73: 57795.76 | M73: 1.839903799 | N73: 106338.6384 | P73: 152059.0352
B75: Total | D75: =SUM(D62:D73) -> 663128.01 | E75: =IF(D75<>0,F75/D75,0) -> 3.507718853 | F75: =SUM(F62:F73) -> 2326066.623 | H75: =SUM(H62:H73) -> 687977.49 | I75: =IF(H75<>0,J75/H75,0) -> 0.7898067874 | J75: =SUM(J62:J73) -> 543369.2912 | L75: =SUM(L62:L73) -> 687977.49 | M75: =IF(L75<>0,N75/L75,0) -> 1.837065272 | N75: =SUM(N62:N73) -> 1263859.555 | P75: =SUM(P62:P73) -> 1807228.846

Sheet 9. Adj Network to Current WS
B13: The purpose of this sheet is to re-align the current RTS Network Rates to recover current wholesale network costs.
B22: Rate Class | D22: Unit | F22: Current RTSR-Network | H22: Loss Adjusted Billed kWh | J22: Loss Adjusted Billed kW | L22: Billed Amount | N22: Billed Amount % | P22: Current Wholesale Billing | R22: Proposed RTSR Network
B25: =IF('3. Rate Classes'!Q24=1,'3. Rate Classes'!C24, 0) -> Residential | D25: =IF(ISERROR(VLOOKUP($B25, '3. Rate Classes'!$C$24:$H$45,6,0)), "", VLOOKUP($B25, '3. Rate Classes'!$C$24:$H$45,6,0)) -> kWh | F25: =IF(ISERROR(VLOOKUP($B25,'3. Rate Classes'!$C$24:$N$45, 8,0)), "", VLOOKUP($B25,'3. Rate Classes'!$C$24:$N$45, 8,0)) -> 0.0067 | H25: =VLOOKUP('9. Adj Network to Current WS'!$B25, '4. RRR Data'!$B$27:$M$49,11,0) -> 182885692.4 | J25: =VLOOKUP('9. Adj Network to Current WS'!$B25, '4. RRR Data'!$B$27:$M$49,12,0) -> 0 | L25: =IF(F25="", "", IF(D25="kWh", F25*H25, F25*J25)) -> 1225334.139 | N25: =IF(ISERROR(L25/$L$49), "", L25/$L$49) -> 0.4984333097 | P25: =IF(ISERROR('7. Current Wholesale'!$F$75*N25), "", '7. Current Wholesale'!$F$75*N25) -> 1159389.085 | R25: =IF(D25="","",IF(D25="kWh",IF(H25<>0,P25/H25,),IF(J25<>0,P25/J25,0))) -> 0.006339419285
B26: =IF('3. Rate Classes'!Q25=1,'3. Rate Classes'!C25, 0) -> General Service Less Than 50 kW | D26: =IF(ISERROR(VLOOKUP($B26, '3. Rate Classes'!$C$24:$H$45,6,0)), "", VLOOKUP($B26, '3. Rate Classes'!$C$24:$H$45,6,0)) -> kWh | F26: =IF(ISERROR(VLOOKUP($B26,'3. Rate Classes'!$C$24:$N$45, 8,0)), "", VLOOKUP($B26,'3. Rate Classes'!$C$24:$N$45, 8,0)) -> 0.006 | H26: =VLOOKUP('9. Adj Network to Current WS'!$B26, '4. RRR Data'!$B$27:$M$49,11,0) -> 60984350.74 | J26: =VLOOKUP('9. Adj Network to Current WS'!$B26, '4. RRR Data'!$B$27:$M$49,12,0) -> 0 | L26: =IF(F26="", "", IF(D26="kWh", F26*H26, F26*J26)) -> 365906.1044 | N26: =IF(ISERROR(L26/$L$49), "", L26/$L$49) -> 0.148840863 | P26: =IF(ISERROR('7. Current Wholesale'!$F$75*N26), "", '7. Current Wholesale'!$F$75*N26) -> 346213.7634 | R26: =IF(D26="","",IF(D26="kWh",IF(H26<>0,P26/H26,),IF(J26<>0,P26/J26,0))) -> 0.005677091897
B27: =IF('3. Rate Classes'!Q26=1,'3. Rate Classes'!C26, 0) -> General Service 50 to 4,999 kW | D27: =IF(ISERROR(VLOOKUP($B27, '3. Rate Classes'!$C$24:$H$45,6,0)), "", VLOOKUP($B27, '3. Rate Classes'!$C$24:$H$45,6,0)) -> kW | F27: =IF(ISERROR(VLOOKUP($B27,'3. Rate Classes'!$C$24:$N$45, 8,0)), "", VLOOKUP($B27,'3. Rate Classes'!$C$24:$N$45, 8,0)) -> 2.4495 | H27: =VLOOKUP('9. Adj Network to Current WS'!$B27, '4. RRR Data'!$B$27:$M$49,11,0) -> 29326720 | J27: =VLOOKUP('9. Adj Network to Current WS'!$B27, '4. RRR Data'!$B$27:$M$49,12,0) -> 95668 | L27: 234338.766 | N27: 0.09532277199 | P27: =IF(ISERROR('7. Current Wholesale'!$F$75*N27), "", '7. Current Wholesale'!$F$75*N27) -> 221727.1183 | R27: 2.317672767
B28: =IF('3. Rate Classes'!Q27=1,'3. Rate Classes'!C27, 0) -> General Service 50 to 4,999 kW – Interval Metered | D28: =IF(ISERROR(VLOOKUP($B28, '3. Rate Classes'!$C$24:$H$45,6,0)), "", VLOOKUP($B28, '3. Rate Classes'!$C$24:$H$45,6,0)) -> kW | F28: =IF(ISERROR(VLOOKUP($B28,'3. Rate Classes'!$C$24:$N$45, 8,0)), "", VLOOKUP($B28,'3. Rate Classes'!$C$24:$N$45, 8,0)) -> 2.5983 | H28: =VLOOKUP('9. Adj Network to Current WS'!$B28, '4. RRR Data'!$B$27:$M$49,11,0) -> 89216393 | J28: =VLOOKUP('9. Adj Network to Current WS'!$B28, '4. RRR Data'!$B$27:$M$49,12,0) -> 237050 | L28: 615927.015 | N28: 0.2505427139 | P28: =IF(ISERROR('7. Current Wholesale'!$F$75*N28), "", '7. Current Wholesale'!$F$75*N28) -> 582779.0444 | R28: 2.458464646
B29: =IF('3. Rate Classes'!Q28=1,'3. Rate Classes'!C28, 0) -> Unmetered Scattered Load | D29: =IF(ISERROR(VLOOKUP($B29, '3. Rate Classes'!$C$24:$H$45,6,0)), "", VLOOKUP($B29, '3. Rate Classes'!$C$24:$H$45,6,0)) -> kWh | F29: =IF(ISERROR(VLOOKUP($B29,'3. Rate Classes'!$C$24:$N$45, 8,0)), "", VLOOKUP($B29,'3. Rate Classes'!$C$24:$N$45, 8,0)) -> 0.006 | H29: =VLOOKUP('9. Adj Network to Current WS'!$B29, '4. RRR Data'!$B$27:$M$49,11,0) -> 434158.02 | J29: =VLOOKUP('9. Adj Network to Current WS'!$B29, '4. RRR Data'!$B$27:$M$49,12,0) -> 0 | L29: 2604.94812 | N29: 0.001059623552 | P29: =IF(ISERROR('7. Current Wholesale'!$F$75*N29), "", '7. Current Wholesale'!$F$75*N29) -> 2464.754978 | R29: 0.005677091897
B30: =IF('3. Rate Classes'!Q29=1,'3. Rate Classes'!C29, 0) -> Sentinel Lighting | D30: =IF(ISERROR(VLOOKUP($B30, '3. Rate Classes'!$C$24:$H$45,6,0)), "", VLOOKUP($B30, '3. Rate Classes'!$C$24:$H$45,6,0)) -> kW | F30: =IF(ISERROR(VLOOKUP($B30,'3. Rate Classes'!$C$24:$N$45, 8,0)), "", VLOOKUP($B30,'3. Rate Classes'!$C$24:$N$45, 8,0)) -> 1.8564 | H30: =VLOOKUP('9. Adj Network to Current WS'!$B30, '4. RRR Data'!$B$27:$M$49,11,0) -> 385924 | J30: =VLOOKUP('9. Adj Network to Current WS'!$B30, '4. RRR Data'!$B$27:$M$49,12,0) -> 1069 | L30: 1984.4916 | N30: 0.0008072383564 | P30: =IF(ISERROR('7. Current Wholesale'!$F$75*N30), "", '7. Current Wholesale'!$F$75*N30) -> 1877.690197 | R30: 1.756492233
B31: =IF('3. Rate Classes'!Q30=1,'3. Rate Classes'!C30, 0) -> Street Lighting | D31: =IF(ISERROR(VLOOKUP($B31, '3. Rate Classes'!$C$24:$H$45,6,0)), "", VLOOKUP($B31, '3. Rate Classes'!$C$24:$H$45,6,0)) -> kW | F31: =IF(ISERROR(VLOOKUP($B31,'3. Rate Classes'!$C$24:$N$45, 8,0)), "", VLOOKUP($B31,'3. Rate Classes'!$C$24:$N$45, 8,0)) -> 1.8471 | H31: =VLOOKUP('9. Adj Network to Current WS'!$B31, '4. RRR Data'!$B$27:$M$49,11,0) -> 2281811 | J31: =VLOOKUP('9. Adj Network to Current WS'!$B31, '4. RRR Data'!$B$27:$M$49,12,0) -> 6646 | L31: 12275.8266 | N31: 0.004993479482 | P31: =IF(ISERROR('7. Current Wholesale'!$F$75*N31), "", '7. Current Wholesale'!$F$75*N31) -> 11615.16595 | R31: 1.747692741
B32: =IF('3. Rate Classes'!Q31=1,'3. Rate Classes'!C31, 0) -> 0 | D32: =IF(ISERROR(VLOOKUP($B32, '3. Rate Classes'!$C$24:$H$45,6,0)), "", VLOOKUP($B32, '3. Rate Classes'!$C$24:$H$45,6,0)) ->  | F32: =IF(ISERROR(VLOOKUP($B32,'3. Rate Classes'!$C$24:$N$45, 8,0)), "", VLOOKUP($B32,'3. Rate Classes'!$C$24:$N$45, 8,0)) ->  | H32: =VLOOKUP('9. Adj Network to Current WS'!$B32, '4. RRR Data'!$B$27:$M$49,11,0) -> 0 | J32: =VLOOKUP('9. Adj Network to Current WS'!$B32, '4. RRR Data'!$B$27:$M$49,12,0) -> 0 | P32: =IF(ISERROR('7. Current Wholesale'!$F$75*N32), "", '7. Current Wholesale'!$F$75*N32) -> 
B33: =IF('3. Rate Classes'!Q32=1,'3. Rate Classes'!C32, 0) -> 0 | D33: =IF(ISERROR(VLOOKUP($B33, '3. Rate Classes'!$C$24:$H$45,6,0)), "", VLOOKUP($B33, '3. Rate Classes'!$C$24:$H$45,6,0)) ->  | F33: =IF(ISERROR(VLOOKUP($B33,'3. Rate Classes'!$C$24:$N$45, 8,0)), "", VLOOKUP($B33,'3. Rate Classes'!$C$24:$N$45, 8,0)) ->  | H33: =VLOOKUP('9. Adj Network to Current WS'!$B33, '4. RRR Data'!$B$27:$M$49,11,0) -> 0 | J33: =VLOOKUP('9. Adj Network to Current WS'!$B33, '4. RRR Data'!$B$27:$M$49,12,0) -> 0 | P33: =IF(ISERROR('7. Current Wholesale'!$F$75*N33), "", '7. Current Wholesale'!$F$75*N33) -> 
B34: =IF('3. Rate Classes'!Q33=1,'3. Rate Classes'!C33, 0) -> 0 | D34: =IF(ISERROR(VLOOKUP($B34, '3. Rate Classes'!$C$24:$H$45,6,0)), "", VLOOKUP($B34, '3. Rate Classes'!$C$24:$H$45,6,0)) ->  | F34: =IF(ISERROR(VLOOKUP($B34,'3. Rate Classes'!$C$24:$N$45, 8,0)), "", VLOOKUP($B34,'3. Rate Classes'!$C$24:$N$45, 8,0)) ->  | H34: =VLOOKUP('9. Adj Network to Current WS'!$B34, '4. RRR Data'!$B$27:$M$49,11,0) -> 0 | J34: =VLOOKUP('9. Adj Network to Current WS'!$B34, '4. RRR Data'!$B$27:$M$49,12,0) -> 0 | P34: =IF(ISERROR('7. Current Wholesale'!$F$75*N34), "", '7. Current Wholesale'!$F$75*N34) -> 
B35: =IF('3. Rate Classes'!Q34=1,'3. Rate Classes'!C34, 0) -> 0 | D35: =IF(ISERROR(VLOOKUP($B35, '3. Rate Classes'!$C$24:$H$45,6,0)), "", VLOOKUP($B35, '3. Rate Classes'!$C$24:$H$45,6,0)) ->  | F35: =IF(ISERROR(VLOOKUP($B35,'3. Rate Classes'!$C$24:$N$45, 8,0)), "", VLOOKUP($B35,'3. Rate Classes'!$C$24:$N$45, 8,0)) ->  | H35: =VLOOKUP('9. Adj Network to Current WS'!$B35, '4. RRR Data'!$B$27:$M$49,11,0) -> 0 | J35: =VLOOKUP('9. Adj Network to Current WS'!$B35, '4. RRR Data'!$B$27:$M$49,12,0) -> 0 | P35: =IF(ISERROR('7. Current Wholesale'!$F$75*N35), "", '7. Current Wholesale'!$F$75*N35) -> 
B36: =IF('3. Rate Classes'!Q35=1,'3. Rate Classes'!C35, 0) -> 0 | D36: =IF(ISERROR(VLOOKUP($B36, '3. Rate Classes'!$C$24:$H$45,6,0)), "", VLOOKUP($B36, '3. Rate Classes'!$C$24:$H$45,6,0)) ->  | F36: =IF(ISERROR(VLOOKUP($B36,'3. Rate Classes'!$C$24:$N$45, 8,0)), "", VLOOKUP($B36,'3. Rate Classes'!$C$24:$N$45, 8,0)) ->  | H36: =VLOOKUP('9. Adj Network to Current WS'!$B36, '4. RRR Data'!$B$27:$M$49,11,0) -> 0 | J36: =VLOOKUP('9. Adj Network to Current WS'!$B36, '4. RRR Data'!$B$27:$M$49,12,0) -> 0 | P36: =IF(ISERROR('7. Current Wholesale'!$F$75*N36), "", '7. Current Wholesale'!$F$75*N36) -> 
B37: =IF('3. Rate Classes'!Q36=1,'3. Rate Classes'!C36, 0) -> 0 | D37: =IF(ISERROR(VLOOKUP($B37, '3. Rate Classes'!$C$24:$H$45,6,0)), "", VLOOKUP($B37, '3. Rate Classes'!$C$24:$H$45,6,0)) ->  | F37: =IF(ISERROR(VLOOKUP($B37,'3. Rate Classes'!$C$24:$N$45, 8,0)), "", VLOOKUP($B37,'3. Rate Classes'!$C$24:$N$45, 8,0)) ->  | H37: =VLOOKUP('9. Adj Network to Current WS'!$B37, '4. RRR Data'!$B$27:$M$49,11,0) -> 0 | J37: =VLOOKUP('9. Adj Network to Current WS'!$B37, '4. RRR Data'!$B$27:$M$49,12,0) -> 0 | P37: =IF(ISERROR('7. Current Wholesale'!$F$75*N37), "", '7. Current Wholesale'!$F$75*N37) -> 
B38: =IF('3. Rate Classes'!Q37=1,'3. Rate Classes'!C37, 0) -> 0 | D38: =IF(ISERROR(VLOOKUP($B38, '3. Rate Classes'!$C$24:$H$45,6,0)), "", VLOOKUP($B38, '3. Rate Classes'!$C$24:$H$45,6,0)) ->  | F38: =IF(ISERROR(VLOOKUP($B38,'3. Rate Classes'!$C$24:$N$45, 8,0)), "", VLOOKUP($B38,'3. Rate Classes'!$C$24:$N$45, 8,0)) ->  | H38: =VLOOKUP('9. Adj Network to Current WS'!$B38, '4. RRR Data'!$B$27:$M$49,11,0) -> 0 | J38: =VLOOKUP('9. Adj Network to Current WS'!$B38, '4. RRR Data'!$B$27:$M$49,12,0) -> 0 | P38: =IF(ISERROR('7. Current Wholesale'!$F$75*N38), "", '7. Current Wholesale'!$F$75*N38) -> 
B39: =IF('3. Rate Classes'!Q38=1,'3. Rate Classes'!C38, 0) -> 0 | D39: =IF(ISERROR(VLOOKUP($B39, '3. Rate Classes'!$C$24:$H$45,6,0)), "", VLOOKUP($B39, '3. Rate Classes'!$C$24:$H$45,6,0)) ->  | F39: =IF(ISERROR(VLOOKUP($B39,'3. Rate Classes'!$C$24:$N$45, 8,0)), "", VLOOKUP($B39,'3. Rate Classes'!$C$24:$N$45, 8,0)) ->  | H39: =VLOOKUP('9. Adj Network to Current WS'!$B39, '4. RRR Data'!$B$27:$M$49,11,0) -> 0 | J39: =VLOOKUP('9. Adj Network to Current WS'!$B39, '4. RRR Data'!$B$27:$M$49,12,0) -> 0 | L39: =IF(F39="", "", IF(D39="kWh", F39*H39, F39*J39)) ->  | P39: =IF(ISERROR('7. Current Wholesale'!$F$75*N39), "", '7. Current Wholesale'!$F$75*N39) -> 
B40: =IF('3. Rate Classes'!Q39=1,'3. Rate Classes'!C39, 0) -> 0 | D40: =IF(ISERROR(VLOOKUP($B40, '3. Rate Classes'!$C$24:$H$45,6,0)), "", VLOOKUP($B40, '3. Rate Classes'!$C$24:$H$45,6,0)) ->  | F40: =IF(ISERROR(VLOOKUP($B40,'3. Rate Classes'!$C$24:$N$45, 8,0)), "", VLOOKUP($B40,'3. Rate Classes'!$C$24:$N$45, 8,0)) ->  | H40: =VLOOKUP('9. Adj Network to Current WS'!$B40, '4. RRR Data'!$B$27:$M$49,11,0) -> 0 | J40: =VLOOKUP('9. Adj Network to Current WS'!$B40, '4. RRR Data'!$B$27:$M$49,12,0) -> 0 | P40: =IF(ISERROR('7. Current Wholesale'!$F$75*N40), "", '7. Current Wholesale'!$F$75*N40) -> 
B41: =IF('3. Rate Classes'!Q40=1,'3. Rate Classes'!C40, 0) -> 0 | D41: =IF(ISERROR(VLOOKUP($B41, '3. Rate Classes'!$C$24:$H$45,6,0)), "", VLOOKUP($B41, '3. Rate Classes'!$C$24:$H$45,6,0)) ->  | F41: =IF(ISERROR(VLOOKUP($B41,'3. Rate Classes'!$C$24:$N$45, 8,0)), "", VLOOKUP($B41,'3. Rate Classes'!$C$24:$N$45, 8,0)) ->  | H41: =VLOOKUP('9. Adj Network to Current WS'!$B41, '4. RRR Data'!$B$27:$M$49,11,0) -> 0 | J41: =VLOOKUP('9. Adj Network to Current WS'!$B41, '4. RRR Data'!$B$27:$M$49,12,0) -> 0 | P41: =IF(ISERROR('7. Current Wholesale'!$F$75*N41), "", '7. Current Wholesale'!$F$75*N41) -> 
B42: =IF('3. Rate Classes'!Q41=1,'3. Rate Classes'!C41, 0) -> 0 | D42: =IF(ISERROR(VLOOKUP($B42, '3. Rate Classes'!$C$24:$H$45,6,0)), "", VLOOKUP($B42, '3. Rate Classes'!$C$24:$H$45,6,0)) ->  | F42: =IF(ISERROR(VLOOKUP($B42,'3. Rate Classes'!$C$24:$N$45, 8,0)), "", VLOOKUP($B42,'3. Rate Classes'!$C$24:$N$45, 8,0)) ->  | H42: =VLOOKUP('9. Adj Network to Current WS'!$B42, '4. RRR Data'!$B$27:$M$49,11,0) -> 0 | J42: =VLOOKUP('9. Adj Network to Current WS'!$B42, '4. RRR Data'!$B$27:$M$49,12,0) -> 0 | P42: =IF(ISERROR('7. Current Wholesale'!$F$75*N42), "", '7. Current Wholesale'!$F$75*N42) -> 
B43: =IF('3. Rate Classes'!Q42=1,'3. Rate Classes'!C42, 0) -> 0 | D43: =IF(ISERROR(VLOOKUP($B43, '3. Rate Classes'!$C$24:$H$45,6,0)), "", VLOOKUP($B43, '3. Rate Classes'!$C$24:$H$45,6,0)) ->  | F43: =IF(ISERROR(VLOOKUP($B43,'3. Rate Classes'!$C$24:$N$45, 8,0)), "", VLOOKUP($B43,'3. Rate Classes'!$C$24:$N$45, 8,0)) ->  | H43: =VLOOKUP('9. Adj Network to Current WS'!$B43, '4. RRR Data'!$B$27:$M$49,11,0) -> 0 | J43: =VLOOKUP('9. Adj Network to Current WS'!$B43, '4. RRR Data'!$B$27:$M$49,12,0) -> 0 | P43: =IF(ISERROR('7. Current Wholesale'!$F$75*N43), "", '7. Current Wholesale'!$F$75*N43) -> 
B44: =IF('3. Rate Classes'!Q43=1,'3. Rate Classes'!C43, 0) -> 0 | D44: =IF(ISERROR(VLOOKUP($B44, '3. Rate Classes'!$C$24:$H$45,6,0)), "", VLOOKUP($B44, '3. Rate Classes'!$C$24:$H$45,6,0)) ->  | F44: =IF(ISERROR(VLOOKUP($B44,'3. Rate Classes'!$C$24:$N$45, 8,0)), "", VLOOKUP($B44,'3. Rate Classes'!$C$24:$N$45, 8,0)) ->  | H44: =VLOOKUP('9. Adj Network to Current WS'!$B44, '4. RRR Data'!$B$27:$M$49,11,0) -> 0 | J44: =VLOOKUP('9. Adj Network to Current WS'!$B44, '4. RRR Data'!$B$27:$M$49,12,0) -> 0 | P44: =IF(ISERROR('7. Current Wholesale'!$F$75*N44), "", '7. Current Wholesale'!$F$75*N44) -> 
B45: =IF('3. Rate Classes'!Q44=1,'3. Rate Classes'!C44, 0) -> 0 | D45: =IF(ISERROR(VLOOKUP($B45, '3. Rate Classes'!$C$24:$H$45,6,0)), "", VLOOKUP($B45, '3. Rate Classes'!$C$24:$H$45,6,0)) ->  | F45: =IF(ISERROR(VLOOKUP($B45,'3. Rate Classes'!$C$24:$N$45, 8,0)), "", VLOOKUP($B45,'3. Rate Classes'!$C$24:$N$45, 8,0)) ->  | H45: =VLOOKUP('9. Adj Network to Current WS'!$B45, '4. RRR Data'!$B$27:$M$49,11,0) -> 0 | J45: =VLOOKUP('9. Adj Network to Current WS'!$B45, '4. RRR Data'!$B$27:$M$49,12,0) -> 0 | P45: =IF(ISERROR('7. Current Wholesale'!$F$75*N45), "", '7. Current Wholesale'!$F$75*N45) -> 
B46: =IF('3. Rate Classes'!Q45=1,'3. Rate Classes'!C45, 0) -> 0 | D46: =IF(ISERROR(VLOOKUP($B46, '3. Rate Classes'!$C$24:$H$45,6,0)), "", VLOOKUP($B46, '3. Rate Classes'!$C$24:$H$45,6,0)) ->  | F46: =IF(ISERROR(VLOOKUP($B46,'3. Rate Classes'!$C$24:$N$45, 8,0)), "", VLOOKUP($B46,'3. Rate Classes'!$C$24:$N$45, 8,0)) ->  | H46: =VLOOKUP('9. Adj Network to Current WS'!$B46, '4. RRR Data'!$B$27:$M$49,11,0) -> 0 | J46: =VLOOKUP('9. Adj Network to Current WS'!$B46, '4. RRR Data'!$B$27:$M$49,12,0) -> 0 | P46: =IF(ISERROR('7. Current Wholesale'!$F$75*N46), "", '7. Current Wholesale'!$F$75*N46) -> 
L49: =SUM(L25:L46) -> 2458371.291

Sheet 10. Adj Conn. to Current WS
B13: The purpose of this sheet is to re-align the current RTS Connection Rates to recover current wholesale connection costs.
B22: Rate Class | D22: Unit | F22: Current RTSR-Connection | H22: Loss Adjusted Billed kWh | J22: Loss Adjusted Billed kW | L22: Billed Amount | N22: Billed Amount % | P22: Current Wholesale Billing | R22: Proposed RTSR Connection
B25: =IF('3. Rate Classes'!Q24=1,'3. Rate Classes'!C24, 0) -> Residential | D25: =IF(ISERROR(VLOOKUP($B25, '3. Rate Classes'!$C$24:$H$45,6,0)), "", VLOOKUP($B25, '3. Rate Classes'!$C$24:$H$45,6,0)) -> kWh | F25: =IF(ISERROR(VLOOKUP($B25,'3. Rate Classes'!$C$24:$N$45, 11,0)), "", VLOOKUP($B25,'3. Rate Classes'!$C$24:$N$45, 11,0)) -> 0.0052 | H25: =VLOOKUP('9. Adj Network to Current WS'!$B25, '4. RRR Data'!$B$27:$M$49,11,0) -> 182885692.4 | J25: =VLOOKUP('9. Adj Network to Current WS'!$B25, '4. RRR Data'!$B$27:$M$49,12,0) -> 0 | L25: =IF(F25="", "", IF(D25="kWh", F25*H25, F25*J25)) -> 951005.6004 | N25: =IF(ISERROR(L25/$L$49), "", L25/$L$49) -> 0.492695938 | P25: =IF(ISERROR('7. Current Wholesale'!$P$75*N25), "", '7. Current Wholesale'!$P$75*N25) -> 890414.3113 | R25: =IF(D25="","",IF(D25="kWh",IF(H25<>0,P25/H25,),IF(J25<>0,P25/J25,0))) -> 0.004868693115
B26: =IF('3. Rate Classes'!Q25=1,'3. Rate Classes'!C25, 0) -> General Service Less Than 50 kW | D26: =IF(ISERROR(VLOOKUP($B26, '3. Rate Classes'!$C$24:$H$45,6,0)), "", VLOOKUP($B26, '3. Rate Classes'!$C$24:$H$45,6,0)) -> kWh | F26: =IF(ISERROR(VLOOKUP($B26,'3. Rate Classes'!$C$24:$N$45, 11,0)), "", VLOOKUP($B26,'3. Rate Classes'!$C$24:$N$45, 11,0)) -> 0.0048 | H26: =VLOOKUP('9. Adj Network to Current WS'!$B26, '4. RRR Data'!$B$27:$M$49,11,0) -> 60984350.74 | J26: =VLOOKUP('9. Adj Network to Current WS'!$B26, '4. RRR Data'!$B$27:$M$49,12,0) -> 0 | L26: 292724.8835 | N26: 0.1516545865 | P26: =IF(ISERROR('7. Current Wholesale'!$P$75*N26), "", '7. Current Wholesale'!$P$75*N26) -> 274074.5433 | R26: 0.00449417826
B27: =IF('3. Rate Classes'!Q26=1,'3. Rate Classes'!C26, 0) -> General Service 50 to 4,999 kW | D27: =IF(ISERROR(VLOOKUP($B27, '3. Rate Classes'!$C$24:$H$45,6,0)), "", VLOOKUP($B27, '3. Rate Classes'!$C$24:$H$45,6,0)) -> kW | F27: =IF(ISERROR(VLOOKUP($B27,'3. Rate Classes'!$C$24:$N$45, 11,0)), "", VLOOKUP($B27,'3. Rate Classes'!$C$24:$N$45, 11,0)) -> 1.882 | H27: =VLOOKUP('9. Adj Network to Current WS'!$B27, '4. RRR Data'!$B$27:$M$49,11,0) -> 29326720 | J27: =VLOOKUP('9. Adj Network to Current WS'!$B27, '4. RRR Data'!$B$27:$M$49,12,0) -> 95668 | L27: 180047.176 | N27: 0.09327864339 | P27: =IF(ISERROR('7. Current Wholesale'!$P$75*N27), "", '7. Current Wholesale'!$P$75*N27) -> 168575.855 | R27: 1.762092393
B28: =IF('3. Rate Classes'!Q27=1,'3. Rate Classes'!C27, 0) -> General Service 50 to 4,999 kW – Interval Metered | D28: =IF(ISERROR(VLOOKUP($B28, '3. Rate Classes'!$C$24:$H$45,6,0)), "", VLOOKUP($B28, '3. Rate Classes'!$C$24:$H$45,6,0)) -> kW | F28: =IF(ISERROR(VLOOKUP($B28,'3. Rate Classes'!$C$24:$N$45, 11,0)), "", VLOOKUP($B28,'3. Rate Classes'!$C$24:$N$45, 11,0)) -> 2.0801 | H28: =VLOOKUP('9. Adj Network to Current WS'!$B28, '4. RRR Data'!$B$27:$M$49,11,0) -> 89216393 | J28: =VLOOKUP('9. Adj Network to Current WS'!$B28, '4. RRR Data'!$B$27:$M$49,12,0) -> 237050 | L28: 493087.705 | N28: 0.2554583372 | P28: =IF(ISERROR('7. Current Wholesale'!$P$75*N28), "", '7. Current Wholesale'!$P$75*N28) -> 461671.6758 | R28: 1.947570875
B29: =IF('3. Rate Classes'!Q28=1,'3. Rate Classes'!C28, 0) -> Unmetered Scattered Load | D29: =IF(ISERROR(VLOOKUP($B29, '3. Rate Classes'!$C$24:$H$45,6,0)), "", VLOOKUP($B29, '3. Rate Classes'!$C$24:$H$45,6,0)) -> kWh | F29: =IF(ISERROR(VLOOKUP($B29,'3. Rate Classes'!$C$24:$N$45, 11,0)), "", VLOOKUP($B29,'3. Rate Classes'!$C$24:$N$45, 11,0)) -> 0.0048 | H29: =VLOOKUP('9. Adj Network to Current WS'!$B29, '4. RRR Data'!$B$27:$M$49,11,0) -> 434158.02 | J29: =VLOOKUP('9. Adj Network to Current WS'!$B29, '4. RRR Data'!$B$27:$M$49,12,0) -> 0 | L29: 2083.958496 | N29: 0.001079654931 | P29: =IF(ISERROR('7. Current Wholesale'!$P$75*N29), "", '7. Current Wholesale'!$P$75*N29) -> 1951.183535 | R29: 0.00449417826
B30: =IF('3. Rate Classes'!Q29=1,'3. Rate Classes'!C29, 0) -> Sentinel Lighting | D30: =IF(ISERROR(VLOOKUP($B30, '3. Rate Classes'!$C$24:$H$45,6,0)), "", VLOOKUP($B30, '3. Rate Classes'!$C$24:$H$45,6,0)) -> kW | F30: =IF(ISERROR(VLOOKUP($B30,'3. Rate Classes'!$C$24:$N$45, 11,0)), "", VLOOKUP($B30,'3. Rate Classes'!$C$24:$N$45, 11,0)) -> 1.4855 | H30: =VLOOKUP('9. Adj Network to Current WS'!$B30, '4. RRR Data'!$B$27:$M$49,11,0) -> 385924 | J30: =VLOOKUP('9. Adj Network to Current WS'!$B30, '4. RRR Data'!$B$27:$M$49,12,0) -> 1069 | L30: 1587.9995 | N30: 0.0008227090385 | P30: =IF(ISERROR('7. Current Wholesale'!$P$75*N30), "", '7. Current Wholesale'!$P$75*N30) -> 1486.823506 | R30: 1.390854543
B31: =IF('3. Rate Classes'!Q30=1,'3. Rate Classes'!C30, 0) -> Street Lighting | D31: =IF(ISERROR(VLOOKUP($B31, '3. Rate Classes'!$C$24:$H$45,6,0)), "", VLOOKUP($B31, '3. Rate Classes'!$C$24:$H$45,6,0)) -> kW | F31: =IF(ISERROR(VLOOKUP($B31,'3. Rate Classes'!$C$24:$N$45, 11,0)), "", VLOOKUP($B31,'3. Rate Classes'!$C$24:$N$45, 11,0)) -> 1.4551 | H31: =VLOOKUP('9. Adj Network to Current WS'!$B31, '4. RRR Data'!$B$27:$M$49,11,0) -> 2281811 | J31: =VLOOKUP('9. Adj Network to Current WS'!$B31, '4. RRR Data'!$B$27:$M$49,12,0) -> 6646 | L31: 9670.5946 | N31: 0.005010131039 | P31: =IF(ISERROR('7. Current Wholesale'!$P$75*N31), "", '7. Current Wholesale'!$P$75*N31) -> 9054.453336 | R31: 1.362391414
B32: =IF('3. Rate Classes'!Q31=1,'3. Rate Classes'!C31, 0) -> 0 | D32: =IF(ISERROR(VLOOKUP($B32, '3. Rate Classes'!$C$24:$H$45,6,0)), "", VLOOKUP($B32, '3. Rate Classes'!$C$24:$H$45,6,0)) ->  | F32: =IF(ISERROR(VLOOKUP($B32,'3. Rate Classes'!$C$24:$N$45, 11,0)), "", VLOOKUP($B32,'3. Rate Classes'!$C$24:$N$45, 11,0)) ->  | H32: =VLOOKUP('9. Adj Network to Current WS'!$B32, '4. RRR Data'!$B$27:$M$49,11,0) -> 0 | J32: =VLOOKUP('9. Adj Network to Current WS'!$B32, '4. RRR Data'!$B$27:$M$49,12,0) -> 0 | P32: =IF(ISERROR('7. Current Wholesale'!$P$75*N32), "", '7. Current Wholesale'!$P$75*N32) -> 
B33: =IF('3. Rate Classes'!Q32=1,'3. Rate Classes'!C32, 0) -> 0 | D33: =IF(ISERROR(VLOOKUP($B33, '3. Rate Classes'!$C$24:$H$45,6,0)), "", VLOOKUP($B33, '3. Rate Classes'!$C$24:$H$45,6,0)) ->  | F33: =IF(ISERROR(VLOOKUP($B33,'3. Rate Classes'!$C$24:$N$45, 11,0)), "", VLOOKUP($B33,'3. Rate Classes'!$C$24:$N$45, 11,0)) ->  | H33: =VLOOKUP('9. Adj Network to Current WS'!$B33, '4. RRR Data'!$B$27:$M$49,11,0) -> 0 | J33: =VLOOKUP('9. Adj Network to Current WS'!$B33, '4. RRR Data'!$B$27:$M$49,12,0) -> 0 | P33: =IF(ISERROR('7. Current Wholesale'!$P$75*N33), "", '7. Current Wholesale'!$P$75*N33) -> 
B34: =IF('3. Rate Classes'!Q33=1,'3. Rate Classes'!C33, 0) -> 0 | D34: =IF(ISERROR(VLOOKUP($B34, '3. Rate Classes'!$C$24:$H$45,6,0)), "", VLOOKUP($B34, '3. Rate Classes'!$C$24:$H$45,6,0)) ->  | F34: =IF(ISERROR(VLOOKUP($B34,'3. Rate Classes'!$C$24:$N$45, 11,0)), "", VLOOKUP($B34,'3. Rate Classes'!$C$24:$N$45, 11,0)) ->  | H34: =VLOOKUP('9. Adj Network to Current WS'!$B34, '4. RRR Data'!$B$27:$M$49,11,0) -> 0 | J34: =VLOOKUP('9. Adj Network to Current WS'!$B34, '4. RRR Data'!$B$27:$M$49,12,0) -> 0 | P34: =IF(ISERROR('7. Current Wholesale'!$P$75*N34), "", '7. Current Wholesale'!$P$75*N34) -> 
B35: =IF('3. Rate Classes'!Q34=1,'3. Rate Classes'!C34, 0) -> 0 | D35: =IF(ISERROR(VLOOKUP($B35, '3. Rate Classes'!$C$24:$H$45,6,0)), "", VLOOKUP($B35, '3. Rate Classes'!$C$24:$H$45,6,0)) ->  | F35: =IF(ISERROR(VLOOKUP($B35,'3. Rate Classes'!$C$24:$N$45, 11,0)), "", VLOOKUP($B35,'3. Rate Classes'!$C$24:$N$45, 11,0)) ->  | H35: =VLOOKUP('9. Adj Network to Current WS'!$B35, '4. RRR Data'!$B$27:$M$49,11,0) -> 0 | J35: =VLOOKUP('9. Adj Network to Current WS'!$B35, '4. RRR Data'!$B$27:$M$49,12,0) -> 0 | P35: =IF(ISERROR('7. Current Wholesale'!$P$75*N35), "", '7. Current Wholesale'!$P$75*N35) -> 
B36: =IF('3. Rate Classes'!Q35=1,'3. Rate Classes'!C35, 0) -> 0 | D36: =IF(ISERROR(VLOOKUP($B36, '3. Rate Classes'!$C$24:$H$45,6,0)), "", VLOOKUP($B36, '3. Rate Classes'!$C$24:$H$45,6,0)) ->  | F36: =IF(ISERROR(VLOOKUP($B36,'3. Rate Classes'!$C$24:$N$45, 11,0)), "", VLOOKUP($B36,'3. Rate Classes'!$C$24:$N$45, 11,0)) ->  | H36: =VLOOKUP('9. Adj Network to Current WS'!$B36, '4. RRR Data'!$B$27:$M$49,11,0) -> 0 | J36: =VLOOKUP('9. Adj Network to Current WS'!$B36, '4. RRR Data'!$B$27:$M$49,12,0) -> 0 | P36: =IF(ISERROR('7. Current Wholesale'!$P$75*N36), "", '7. Current Wholesale'!$P$75*N36) -> 
B37: =IF('3. Rate Classes'!Q36=1,'3. Rate Classes'!C36, 0) -> 0 | D37: =IF(ISERROR(VLOOKUP($B37, '3. Rate Classes'!$C$24:$H$45,6,0)), "", VLOOKUP($B37, '3. Rate Classes'!$C$24:$H$45,6,0)) ->  | F37: =IF(ISERROR(VLOOKUP($B37,'3. Rate Classes'!$C$24:$N$45, 11,0)), "", VLOOKUP($B37,'3. Rate Classes'!$C$24:$N$45, 11,0)) ->  | H37: =VLOOKUP('9. Adj Network to Current WS'!$B37, '4. RRR Data'!$B$27:$M$49,11,0) -> 0 | J37: =VLOOKUP('9. Adj Network to Current WS'!$B37, '4. RRR Data'!$B$27:$M$49,12,0) -> 0 | P37: =IF(ISERROR('7. Current Wholesale'!$P$75*N37), "", '7. Current Wholesale'!$P$75*N37) -> 
B38: =IF('3. Rate Classes'!Q37=1,'3. Rate Classes'!C37, 0) -> 0 | D38: =IF(ISERROR(VLOOKUP($B38, '3. Rate Classes'!$C$24:$H$45,6,0)), "", VLOOKUP($B38, '3. Rate Classes'!$C$24:$H$45,6,0)) ->  | F38: =IF(ISERROR(VLOOKUP($B38,'3. Rate Classes'!$C$24:$N$45, 11,0)), "", VLOOKUP($B38,'3. Rate Classes'!$C$24:$N$45, 11,0)) ->  | H38: =VLOOKUP('9. Adj Network to Current WS'!$B38, '4. RRR Data'!$B$27:$M$49,11,0) -> 0 | J38: =VLOOKUP('9. Adj Network to Current WS'!$B38, '4. RRR Data'!$B$27:$M$49,12,0) -> 0 | P38: =IF(ISERROR('7. Current Wholesale'!$P$75*N38), "", '7. Current Wholesale'!$P$75*N38) -> 
B39: =IF('3. Rate Classes'!Q38=1,'3. Rate Classes'!C38, 0) -> 0 | D39: =IF(ISERROR(VLOOKUP($B39, '3. Rate Classes'!$C$24:$H$45,6,0)), "", VLOOKUP($B39, '3. Rate Classes'!$C$24:$H$45,6,0)) ->  | F39: =IF(ISERROR(VLOOKUP($B39,'3. Rate Classes'!$C$24:$N$45, 11,0)), "", VLOOKUP($B39,'3. Rate Classes'!$C$24:$N$45, 11,0)) ->  | H39: =VLOOKUP('9. Adj Network to Current WS'!$B39, '4. RRR Data'!$B$27:$M$49,11,0) -> 0 | J39: =VLOOKUP('9. Adj Network to Current WS'!$B39, '4. RRR Data'!$B$27:$M$49,12,0) -> 0 | P39: =IF(ISERROR('7. Current Wholesale'!$P$75*N39), "", '7. Current Wholesale'!$P$75*N39) -> 
B40: =IF('3. Rate Classes'!Q39=1,'3. Rate Classes'!C39, 0) -> 0 | D40: =IF(ISERROR(VLOOKUP($B40, '3. Rate Classes'!$C$24:$H$45,6,0)), "", VLOOKUP($B40, '3. Rate Classes'!$C$24:$H$45,6,0)) ->  | F40: =IF(ISERROR(VLOOKUP($B40,'3. Rate Classes'!$C$24:$N$45, 11,0)), "", VLOOKUP($B40,'3. Rate Classes'!$C$24:$N$45, 11,0)) ->  | H40: =VLOOKUP('9. Adj Network to Current WS'!$B40, '4. RRR Data'!$B$27:$M$49,11,0) -> 0 | J40: =VLOOKUP('9. Adj Network to Current WS'!$B40, '4. RRR Data'!$B$27:$M$49,12,0) -> 0 | P40: =IF(ISERROR('7. Current Wholesale'!$P$75*N40), "", '7. Current Wholesale'!$P$75*N40) -> 
B41: =IF('3. Rate Classes'!Q40=1,'3. Rate Classes'!C40, 0) -> 0 | D41: =IF(ISERROR(VLOOKUP($B41, '3. Rate Classes'!$C$24:$H$45,6,0)), "", VLOOKUP($B41, '3. Rate Classes'!$C$24:$H$45,6,0)) ->  | F41: =IF(ISERROR(VLOOKUP($B41,'3. Rate Classes'!$C$24:$N$45, 11,0)), "", VLOOKUP($B41,'3. Rate Classes'!$C$24:$N$45, 11,0)) ->  | H41: =VLOOKUP('9. Adj Network to Current WS'!$B41, '4. RRR Data'!$B$27:$M$49,11,0) -> 0 | J41: =VLOOKUP('9. Adj Network to Current WS'!$B41, '4. RRR Data'!$B$27:$M$49,12,0) -> 0 | P41: =IF(ISERROR('7. Current Wholesale'!$P$75*N41), "", '7. Current Wholesale'!$P$75*N41) -> 
B42: =IF('3. Rate Classes'!Q41=1,'3. Rate Classes'!C41, 0) -> 0 | D42: =IF(ISERROR(VLOOKUP($B42, '3. Rate Classes'!$C$24:$H$45,6,0)), "", VLOOKUP($B42, '3. Rate Classes'!$C$24:$H$45,6,0)) ->  | F42: =IF(ISERROR(VLOOKUP($B42,'3. Rate Classes'!$C$24:$N$45, 11,0)), "", VLOOKUP($B42,'3. Rate Classes'!$C$24:$N$45, 11,0)) ->  | H42: =VLOOKUP('9. Adj Network to Current WS'!$B42, '4. RRR Data'!$B$27:$M$49,11,0) -> 0 | J42: =VLOOKUP('9. Adj Network to Current WS'!$B42, '4. RRR Data'!$B$27:$M$49,12,0) -> 0 | P42: =IF(ISERROR('7. Current Wholesale'!$P$75*N42), "", '7. Current Wholesale'!$P$75*N42) -> 
B43: =IF('3. Rate Classes'!Q42=1,'3. Rate Classes'!C42, 0) -> 0 | D43: =IF(ISERROR(VLOOKUP($B43, '3. Rate Classes'!$C$24:$H$45,6,0)), "", VLOOKUP($B43, '3. Rate Classes'!$C$24:$H$45,6,0)) ->  | F43: =IF(ISERROR(VLOOKUP($B43,'3. Rate Classes'!$C$24:$N$45, 11,0)), "", VLOOKUP($B43,'3. Rate Classes'!$C$24:$N$45, 11,0)) ->  | H43: =VLOOKUP('9. Adj Network to Current WS'!$B43, '4. RRR Data'!$B$27:$M$49,11,0) -> 0 | J43: =VLOOKUP('9. Adj Network to Current WS'!$B43, '4. RRR Data'!$B$27:$M$49,12,0) -> 0 | P43: =IF(ISERROR('7. Current Wholesale'!$P$75*N43), "", '7. Current Wholesale'!$P$75*N43) -> 
B44: =IF('3. Rate Classes'!Q43=1,'3. Rate Classes'!C43, 0) -> 0 | D44: =IF(ISERROR(VLOOKUP($B44, '3. Rate Classes'!$C$24:$H$45,6,0)), "", VLOOKUP($B44, '3. Rate Classes'!$C$24:$H$45,6,0)) ->  | F44: =IF(ISERROR(VLOOKUP($B44,'3. Rate Classes'!$C$24:$N$45, 11,0)), "", VLOOKUP($B44,'3. Rate Classes'!$C$24:$N$45, 11,0)) ->  | H44: =VLOOKUP('9. Adj Network to Current WS'!$B44, '4. RRR Data'!$B$27:$M$49,11,0) -> 0 | J44: =VLOOKUP('9. Adj Network to Current WS'!$B44, '4. RRR Data'!$B$27:$M$49,12,0) -> 0 | P44: =IF(ISERROR('7. Current Wholesale'!$P$75*N44), "", '7. Current Wholesale'!$P$75*N44) -> 
B45: =IF('3. Rate Classes'!Q44=1,'3. Rate Classes'!C44, 0) -> 0 | D45: =IF(ISERROR(VLOOKUP($B45, '3. Rate Classes'!$C$24:$H$45,6,0)), "", VLOOKUP($B45, '3. Rate Classes'!$C$24:$H$45,6,0)) ->  | F45: =IF(ISERROR(VLOOKUP($B45,'3. Rate Classes'!$C$24:$N$45, 11,0)), "", VLOOKUP($B45,'3. Rate Classes'!$C$24:$N$45, 11,0)) ->  | H45: =VLOOKUP('9. Adj Network to Current WS'!$B45, '4. RRR Data'!$B$27:$M$49,11,0) -> 0 | J45: =VLOOKUP('9. Adj Network to Current WS'!$B45, '4. RRR Data'!$B$27:$M$49,12,0) -> 0 | P45: =IF(ISERROR('7. Current Wholesale'!$P$75*N45), "", '7. Current Wholesale'!$P$75*N45) -> 
B46: =IF('3. Rate Classes'!Q45=1,'3. Rate Classes'!C45, 0) -> 0 | D46: =IF(ISERROR(VLOOKUP($B46, '3. Rate Classes'!$C$24:$H$45,6,0)), "", VLOOKUP($B46, '3. Rate Classes'!$C$24:$H$45,6,0)) ->  | F46: =IF(ISERROR(VLOOKUP($B46,'3. Rate Classes'!$C$24:$N$45, 11,0)), "", VLOOKUP($B46,'3. Rate Classes'!$C$24:$N$45, 11,0)) ->  | H46: =VLOOKUP('9. Adj Network to Current WS'!$B46, '4. RRR Data'!$B$27:$M$49,11,0) -> 0 | J46: =VLOOKUP('9. Adj Network to Current WS'!$B46, '4. RRR Data'!$B$27:$M$49,12,0) -> 0 | P46: =IF(ISERROR('7. Current Wholesale'!$P$75*N46), "", '7. Current Wholesale'!$P$75*N46) -> 
L49: =SUM(L25:L46) -> 1930207.918

Sheet 11. Adj Network to Forecast WS
B13: The purpose of this sheet is to update the re-align RTS Network Rates to recover forecast wholesale network costs.
B22: Rate Class | D22: Unit | F22: Adjusted RTSR-Network | H22: Loss Adjusted Billed kWh | J22: Loss Adjusted Billed kW | L22: Billed Amount | N22: Billed Amount % | P22: Forecast Wholesale Billing | R22: Proposed RTSR Network
B25: =IF('3. Rate Classes'!Q24=1,'3. Rate Classes'!C24, 0) -> Residential | D25: =IF(ISERROR(VLOOKUP($B25, '3. Rate Classes'!$C$24:$H$45,6,0)), "", VLOOKUP($B25, '3. Rate Classes'!$C$24:$H$45,6,0)) -> kWh | F25: =VLOOKUP($B25, '9. Adj Network to Current WS'!$B$25:$R$47, 17,0) -> 0.006339419285 | H25: =VLOOKUP('9. Adj Network to Current WS'!$B25, '4. RRR Data'!$B$27:$M$49,11,0) -> 182885692.4 | J25: =VLOOKUP('9. Adj Network to Current WS'!$B25, '4. RRR Data'!$B$27:$M$49,12,0) -> 0 | L25: =IF(F25="", "", IF(D25="kWh", F25*H25, F25*J25)) -> 1159389.085 | N25: =IF(ISERROR(L25/$L$49), "", L25/$L$49) -> 0.4984333097 | P25: =IF(ISERROR('8. Forecast Wholesale'!$F$75*N25), "", '8. Forecast Wholesale'!$F$75*N25) -> 1159389.085 | R25: =IF(D25="","",IF(D25="kWh",IF(H25<>0,P25/H25,),IF(J25<>0,P25/J25,0))) -> 0.006339419285
B26: =IF('3. Rate Classes'!Q25=1,'3. Rate Classes'!C25, 0) -> General Service Less Than 50 kW | D26: =IF(ISERROR(VLOOKUP($B26, '3. Rate Classes'!$C$24:$H$45,6,0)), "", VLOOKUP($B26, '3. Rate Classes'!$C$24:$H$45,6,0)) -> kWh | F26: =VLOOKUP($B26, '9. Adj Network to Current WS'!$B$25:$R$47, 17,0) -> 0.005677091897 | H26: =VLOOKUP('9. Adj Network to Current WS'!$B26, '4. RRR Data'!$B$27:$M$49,11,0) -> 60984350.74 | J26: =VLOOKUP('9. Adj Network to Current WS'!$B26, '4. RRR Data'!$B$27:$M$49,12,0) -> 0 | L26: 346213.7634 | N26: 0.148840863 | P26: =IF(ISERROR('8. Forecast Wholesale'!$F$75*N26), "", '8. Forecast Wholesale'!$F$75*N26) -> 346213.7634 | R26: 0.005677091897
B27: =IF('3. Rate Classes'!Q26=1,'3. Rate Classes'!C26, 0) -> General Service 50 to 4,999 kW | D27: =IF(ISERROR(VLOOKUP($B27, '3. Rate Classes'!$C$24:$H$45,6,0)), "", VLOOKUP($B27, '3. Rate Classes'!$C$24:$H$45,6,0)) -> kW | F27: =VLOOKUP($B27, '9. Adj Network to Current WS'!$B$25:$R$47, 17,0) -> 2.317672767 | H27: =VLOOKUP('9. Adj Network to Current WS'!$B27, '4. RRR Data'!$B$27:$M$49,11,0) -> 29326720 | J27: =VLOOKUP('9. Adj Network to Current WS'!$B27, '4. RRR Data'!$B$27:$M$49,12,0) -> 95668 | L27: 221727.1183 | N27: 0.09532277199 | P27: =IF(ISERROR('8. Forecast Wholesale'!$F$75*N27), "", '8. Forecast Wholesale'!$F$75*N27) -> 221727.1183 | R27: 2.317672767
B28: =IF('3. Rate Classes'!Q27=1,'3. Rate Classes'!C27, 0) -> General Service 50 to 4,999 kW – Interval Metered | D28: =IF(ISERROR(VLOOKUP($B28, '3. Rate Classes'!$C$24:$H$45,6,0)), "", VLOOKUP($B28, '3. Rate Classes'!$C$24:$H$45,6,0)) -> kW | F28: =VLOOKUP($B28, '9. Adj Network to Current WS'!$B$25:$R$47, 17,0) -> 2.458464646 | H28: =VLOOKUP('9. Adj Network to Current WS'!$B28, '4. RRR Data'!$B$27:$M$49,11,0) -> 89216393 | J28: =VLOOKUP('9. Adj Network to Current WS'!$B28, '4. RRR Data'!$B$27:$M$49,12,0) -> 237050 | L28: 582779.0444 | N28: 0.2505427139 | P28: =IF(ISERROR('8. Forecast Wholesale'!$F$75*N28), "", '8. Forecast Wholesale'!$F$75*N28) -> 582779.0444 | R28: 2.458464646
B29: =IF('3. Rate Classes'!Q28=1,'3. Rate Classes'!C28, 0) -> Unmetered Scattered Load | D29: =IF(ISERROR(VLOOKUP($B29, '3. Rate Classes'!$C$24:$H$45,6,0)), "", VLOOKUP($B29, '3. Rate Classes'!$C$24:$H$45,6,0)) -> kWh | F29: =VLOOKUP($B29, '9. Adj Network to Current WS'!$B$25:$R$47, 17,0) -> 0.005677091897 | H29: =VLOOKUP('9. Adj Network to Current WS'!$B29, '4. RRR Data'!$B$27:$M$49,11,0) -> 434158.02 | J29: =VLOOKUP('9. Adj Network to Current WS'!$B29, '4. RRR Data'!$B$27:$M$49,12,0) -> 0 | L29: 2464.754978 | N29: 0.001059623552 | P29: =IF(ISERROR('8. Forecast Wholesale'!$F$75*N29), "", '8. Forecast Wholesale'!$F$75*N29) -> 2464.754978 | R29: 0.005677091897
B30: =IF('3. Rate Classes'!Q29=1,'3. Rate Classes'!C29, 0) -> Sentinel Lighting | D30: =IF(ISERROR(VLOOKUP($B30, '3. Rate Classes'!$C$24:$H$45,6,0)), "", VLOOKUP($B30, '3. Rate Classes'!$C$24:$H$45,6,0)) -> kW | F30: =VLOOKUP($B30, '9. Adj Network to Current WS'!$B$25:$R$47, 17,0) -> 1.756492233 | H30: =VLOOKUP('9. Adj Network to Current WS'!$B30, '4. RRR Data'!$B$27:$M$49,11,0) -> 385924 | J30: =VLOOKUP('9. Adj Network to Current WS'!$B30, '4. RRR Data'!$B$27:$M$49,12,0) -> 1069 | L30: 1877.690197 | N30: 0.0008072383564 | P30: =IF(ISERROR('8. Forecast Wholesale'!$F$75*N30), "", '8. Forecast Wholesale'!$F$75*N30) -> 1877.690197 | R30: 1.756492233
B31: =IF('3. Rate Classes'!Q30=1,'3. Rate Classes'!C30, 0) -> Street Lighting | D31: =IF(ISERROR(VLOOKUP($B31, '3. Rate Classes'!$C$24:$H$45,6,0)), "", VLOOKUP($B31, '3. Rate Classes'!$C$24:$H$45,6,0)) -> kW | F31: =VLOOKUP($B31, '9. Adj Network to Current WS'!$B$25:$R$47, 17,0) -> 1.747692741 | H31: =VLOOKUP('9. Adj Network to Current WS'!$B31, '4. RRR Data'!$B$27:$M$49,11,0) -> 2281811 | J31: =VLOOKUP('9. Adj Network to Current WS'!$B31, '4. RRR Data'!$B$27:$M$49,12,0) -> 6646 | L31: 11615.16595 | N31: 0.004993479482 | P31: =IF(ISERROR('8. Forecast Wholesale'!$F$75*N31), "", '8. Forecast Wholesale'!$F$75*N31) -> 11615.16595 | R31: 1.747692741
B32: =IF('3. Rate Classes'!Q31=1,'3. Rate Classes'!C31, 0) -> 0 | D32: =IF(ISERROR(VLOOKUP($B32, '3. Rate Classes'!$C$24:$H$45,6,0)), "", VLOOKUP($B32, '3. Rate Classes'!$C$24:$H$45,6,0)) ->  | F32: =VLOOKUP($B32, '9. Adj Network to Current WS'!$B$25:$R$47, 17,0) ->  | H32: =VLOOKUP('9. Adj Network to Current WS'!$B32, '4. RRR Data'!$B$27:$M$49,11,0) -> 0 | J32: =VLOOKUP('9. Adj Network to Current WS'!$B32, '4. RRR Data'!$B$27:$M$49,12,0) -> 0 | P32: =IF(ISERROR('8. Forecast Wholesale'!$F$75*N32), "", '8. Forecast Wholesale'!$F$75*N32) -> 
B33: =IF('3. Rate Classes'!Q32=1,'3. Rate Classes'!C32, 0) -> 0 | D33: =IF(ISERROR(VLOOKUP($B33, '3. Rate Classes'!$C$24:$H$45,6,0)), "", VLOOKUP($B33, '3. Rate Classes'!$C$24:$H$45,6,0)) ->  | F33: =VLOOKUP($B33, '9. Adj Network to Current WS'!$B$25:$R$47, 17,0) ->  | H33: =VLOOKUP('9. Adj Network to Current WS'!$B33, '4. RRR Data'!$B$27:$M$49,11,0) -> 0 | J33: =VLOOKUP('9. Adj Network to Current WS'!$B33, '4. RRR Data'!$B$27:$M$49,12,0) -> 0 | P33: =IF(ISERROR('8. Forecast Wholesale'!$F$75*N33), "", '8. Forecast Wholesale'!$F$75*N33) -> 
B34: =IF('3. Rate Classes'!Q33=1,'3. Rate Classes'!C33, 0) -> 0 | D34: =IF(ISERROR(VLOOKUP($B34, '3. Rate Classes'!$C$24:$H$45,6,0)), "", VLOOKUP($B34, '3. Rate Classes'!$C$24:$H$45,6,0)) ->  | F34: =VLOOKUP($B34, '9. Adj Network to Current WS'!$B$25:$R$47, 17,0) ->  | H34: =VLOOKUP('9. Adj Network to Current WS'!$B34, '4. RRR Data'!$B$27:$M$49,11,0) -> 0 | J34: =VLOOKUP('9. Adj Network to Current WS'!$B34, '4. RRR Data'!$B$27:$M$49,12,0) -> 0 | P34: =IF(ISERROR('8. Forecast Wholesale'!$F$75*N34), "", '8. Forecast Wholesale'!$F$75*N34) -> 
B35: =IF('3. Rate Classes'!Q34=1,'3. Rate Classes'!C34, 0) -> 0 | D35: =IF(ISERROR(VLOOKUP($B35, '3. Rate Classes'!$C$24:$H$45,6,0)), "", VLOOKUP($B35, '3. Rate Classes'!$C$24:$H$45,6,0)) ->  | F35: =VLOOKUP($B35, '9. Adj Network to Current WS'!$B$25:$R$47, 17,0) ->  | H35: =VLOOKUP('9. Adj Network to Current WS'!$B35, '4. RRR Data'!$B$27:$M$49,11,0) -> 0 | J35: =VLOOKUP('9. Adj Network to Current WS'!$B35, '4. RRR Data'!$B$27:$M$49,12,0) -> 0 | P35: =IF(ISERROR('8. Forecast Wholesale'!$F$75*N35), "", '8. Forecast Wholesale'!$F$75*N35) -> 
B36: =IF('3. Rate Classes'!Q35=1,'3. Rate Classes'!C35, 0) -> 0 | D36: =IF(ISERROR(VLOOKUP($B36, '3. Rate Classes'!$C$24:$H$45,6,0)), "", VLOOKUP($B36, '3. Rate Classes'!$C$24:$H$45,6,0)) ->  | F36: =VLOOKUP($B36, '9. Adj Network to Current WS'!$B$25:$R$47, 17,0) ->  | H36: =VLOOKUP('9. Adj Network to Current WS'!$B36, '4. RRR Data'!$B$27:$M$49,11,0) -> 0 | J36: =VLOOKUP('9. Adj Network to Current WS'!$B36, '4. RRR Data'!$B$27:$M$49,12,0) -> 0 | P36: =IF(ISERROR('8. Forecast Wholesale'!$F$75*N36), "", '8. Forecast Wholesale'!$F$75*N36) -> 
B37: =IF('3. Rate Classes'!Q36=1,'3. Rate Classes'!C36, 0) -> 0 | D37: =IF(ISERROR(VLOOKUP($B37, '3. Rate Classes'!$C$24:$H$45,6,0)), "", VLOOKUP($B37, '3. Rate Classes'!$C$24:$H$45,6,0)) ->  | F37: =VLOOKUP($B37, '9. Adj Network to Current WS'!$B$25:$R$47, 17,0) ->  | H37: =VLOOKUP('9. Adj Network to Current WS'!$B37, '4. RRR Data'!$B$27:$M$49,11,0) -> 0 | J37: =VLOOKUP('9. Adj Network to Current WS'!$B37, '4. RRR Data'!$B$27:$M$49,12,0) -> 0 | P37: =IF(ISERROR('8. Forecast Wholesale'!$F$75*N37), "", '8. Forecast Wholesale'!$F$75*N37) -> 
B38: =IF('3. Rate Classes'!Q37=1,'3. Rate Classes'!C37, 0) -> 0 | D38: =IF(ISERROR(VLOOKUP($B38, '3. Rate Classes'!$C$24:$H$45,6,0)), "", VLOOKUP($B38, '3. Rate Classes'!$C$24:$H$45,6,0)) ->  | F38: =VLOOKUP($B38, '9. Adj Network to Current WS'!$B$25:$R$47, 17,0) ->  | H38: =VLOOKUP('9. Adj Network to Current WS'!$B38, '4. RRR Data'!$B$27:$M$49,11,0) -> 0 | J38: =VLOOKUP('9. Adj Network to Current WS'!$B38, '4. RRR Data'!$B$27:$M$49,12,0) -> 0 | P38: =IF(ISERROR('8. Forecast Wholesale'!$F$75*N38), "", '8. Forecast Wholesale'!$F$75*N38) -> 
B39: =IF('3. Rate Classes'!Q38=1,'3. Rate Classes'!C38, 0) -> 0 | D39: =IF(ISERROR(VLOOKUP($B39, '3. Rate Classes'!$C$24:$H$45,6,0)), "", VLOOKUP($B39, '3. Rate Classes'!$C$24:$H$45,6,0)) ->  | F39: =VLOOKUP($B39, '9. Adj Network to Current WS'!$B$25:$R$47, 17,0) ->  | H39: =VLOOKUP('9. Adj Network to Current WS'!$B39, '4. RRR Data'!$B$27:$M$49,11,0) -> 0 | J39: =VLOOKUP('9. Adj Network to Current WS'!$B39, '4. RRR Data'!$B$27:$M$49,12,0) -> 0 | P39: =IF(ISERROR('8. Forecast Wholesale'!$F$75*N39), "", '8. Forecast Wholesale'!$F$75*N39) -> 
B40: =IF('3. Rate Classes'!Q39=1,'3. Rate Classes'!C39, 0) -> 0 | D40: =IF(ISERROR(VLOOKUP($B40, '3. Rate Classes'!$C$24:$H$45,6,0)), "", VLOOKUP($B40, '3. Rate Classes'!$C$24:$H$45,6,0)) ->  | F40: =VLOOKUP($B40, '9. Adj Network to Current WS'!$B$25:$R$47, 17,0) ->  | H40: =VLOOKUP('9. Adj Network to Current WS'!$B40, '4. RRR Data'!$B$27:$M$49,11,0) -> 0 | J40: =VLOOKUP('9. Adj Network to Current WS'!$B40, '4. RRR Data'!$B$27:$M$49,12,0) -> 0 | P40: =IF(ISERROR('8. Forecast Wholesale'!$F$75*N40), "", '8. Forecast Wholesale'!$F$75*N40) -> 
B41: =IF('3. Rate Classes'!Q40=1,'3. Rate Classes'!C40, 0) -> 0 | D41: =IF(ISERROR(VLOOKUP($B41, '3. Rate Classes'!$C$24:$H$45,6,0)), "", VLOOKUP($B41, '3. Rate Classes'!$C$24:$H$45,6,0)) ->  | F41: =VLOOKUP($B41, '9. Adj Network to Current WS'!$B$25:$R$47, 17,0) ->  | H41: =VLOOKUP('9. Adj Network to Current WS'!$B41, '4. RRR Data'!$B$27:$M$49,11,0) -> 0 | J41: =VLOOKUP('9. Adj Network to Current WS'!$B41, '4. RRR Data'!$B$27:$M$49,12,0) -> 0 | P41: =IF(ISERROR('8. Forecast Wholesale'!$F$75*N41), "", '8. Forecast Wholesale'!$F$75*N41) -> 
B42: =IF('3. Rate Classes'!Q41=1,'3. Rate Classes'!C41, 0) -> 0 | D42: =IF(ISERROR(VLOOKUP($B42, '3. Rate Classes'!$C$24:$H$45,6,0)), "", VLOOKUP($B42, '3. Rate Classes'!$C$24:$H$45,6,0)) ->  | F42: =VLOOKUP($B42, '9. Adj Network to Current WS'!$B$25:$R$47, 17,0) ->  | H42: =VLOOKUP('9. Adj Network to Current WS'!$B42, '4. RRR Data'!$B$27:$M$49,11,0) -> 0 | J42: =VLOOKUP('9. Adj Network to Current WS'!$B42, '4. RRR Data'!$B$27:$M$49,12,0) -> 0 | P42: =IF(ISERROR('8. Forecast Wholesale'!$F$75*N42), "", '8. Forecast Wholesale'!$F$75*N42) -> 
B43: =IF('3. Rate Classes'!Q42=1,'3. Rate Classes'!C42, 0) -> 0 | D43: =IF(ISERROR(VLOOKUP($B43, '3. Rate Classes'!$C$24:$H$45,6,0)), "", VLOOKUP($B43, '3. Rate Classes'!$C$24:$H$45,6,0)) ->  | F43: =VLOOKUP($B43, '9. Adj Network to Current WS'!$B$25:$R$47, 17,0) ->  | H43: =VLOOKUP('9. Adj Network to Current WS'!$B43, '4. RRR Data'!$B$27:$M$49,11,0) -> 0 | J43: =VLOOKUP('9. Adj Network to Current WS'!$B43, '4. RRR Data'!$B$27:$M$49,12,0) -> 0 | P43: =IF(ISERROR('8. Forecast Wholesale'!$F$75*N43), "", '8. Forecast Wholesale'!$F$75*N43) -> 
B44: =IF('3. Rate Classes'!Q43=1,'3. Rate Classes'!C43, 0) -> 0 | D44: =IF(ISERROR(VLOOKUP($B44, '3. Rate Classes'!$C$24:$H$45,6,0)), "", VLOOKUP($B44, '3. Rate Classes'!$C$24:$H$45,6,0)) ->  | F44: =VLOOKUP($B44, '9. Adj Network to Current WS'!$B$25:$R$47, 17,0) ->  | H44: =VLOOKUP('9. Adj Network to Current WS'!$B44, '4. RRR Data'!$B$27:$M$49,11,0) -> 0 | J44: =VLOOKUP('9. Adj Network to Current WS'!$B44, '4. RRR Data'!$B$27:$M$49,12,0) -> 0 | P44: =IF(ISERROR('8. Forecast Wholesale'!$F$75*N44), "", '8. Forecast Wholesale'!$F$75*N44) -> 
B45: =IF('3. Rate Classes'!Q44=1,'3. Rate Classes'!C44, 0) -> 0 | D45: =IF(ISERROR(VLOOKUP($B45, '3. Rate Classes'!$C$24:$H$45,6,0)), "", VLOOKUP($B45, '3. Rate Classes'!$C$24:$H$45,6,0)) ->  | F45: =VLOOKUP($B45, '9. Adj Network to Current WS'!$B$25:$R$47, 17,0) ->  | H45: =VLOOKUP('9. Adj Network to Current WS'!$B45, '4. RRR Data'!$B$27:$M$49,11,0) -> 0 | J45: =VLOOKUP('9. Adj Network to Current WS'!$B45, '4. RRR Data'!$B$27:$M$49,12,0) -> 0 | P45: =IF(ISERROR('8. Forecast Wholesale'!$F$75*N45), "", '8. Forecast Wholesale'!$F$75*N45) -> 
B46: =IF('3. Rate Classes'!Q45=1,'3. Rate Classes'!C45, 0) -> 0 | D46: =IF(ISERROR(VLOOKUP($B46, '3. Rate Classes'!$C$24:$H$45,6,0)), "", VLOOKUP($B46, '3. Rate Classes'!$C$24:$H$45,6,0)) ->  | F46: =VLOOKUP($B46, '9. Adj Network to Current WS'!$B$25:$R$47, 17,0) ->  | H46: =VLOOKUP('9. Adj Network to Current WS'!$B46, '4. RRR Data'!$B$27:$M$49,11,0) -> 0 | J46: =VLOOKUP('9. Adj Network to Current WS'!$B46, '4. RRR Data'!$B$27:$M$49,12,0) -> 0 | P46: =IF(ISERROR('8. Forecast Wholesale'!$F$75*N46), "", '8. Forecast Wholesale'!$F$75*N46) -> 
L49: =SUM(L25:L46) -> 2326066.623

Sheet 12. Adj Conn. to Forecast WS
B13: The purpose of this sheet is to update the re-aligned RTS Connection Rates to recover forecast wholesale connection costs.
B19: Rate Class
B22: Rate Class | D22: Unit | F22: Adjusted RTSR-Connection | H22: Loss Adjusted Billed kWh | J22: Loss Adjusted Billed kW | L22: Billed Amount | N22: Billed Amount % | P22: Forecast Wholesale Billing | R22: Proposed RTSR Connection
B25: =IF('3. Rate Classes'!Q24=1,'3. Rate Classes'!C24, 0) -> Residential | D25: =IF(ISERROR(VLOOKUP($B25, '3. Rate Classes'!$C$24:$H$45,6,0)), "", VLOOKUP($B25, '3. Rate Classes'!$C$24:$H$45,6,0)) -> kWh | F25: =VLOOKUP($B25, '10. Adj Conn. to Current WS'!$B$25:$R$47, 17,0) -> 0.004868693115 | H25: =VLOOKUP('9. Adj Network to Current WS'!$B25, '4. RRR Data'!$B$27:$M$49,11,0) -> 182885692.4 | J25: =VLOOKUP('9. Adj Network to Current WS'!$B25, '4. RRR Data'!$B$27:$M$49,12,0) -> 0 | L25: =IF(F25="", "", IF(D25="kWh", F25*H25, F25*J25)) -> 890414.3113 | N25: =IF(ISERROR(L25/$L$49), "", L25/$L$49) -> 0.492695938 | P25: =IF(ISERROR('8. Forecast Wholesale'!$P$75*N25), "", '8. Forecast Wholesale'!$P$75*N25) -> 890414.3113 | R25: =IF(D25="","",IF(D25="kWh",IF(H25<>0,P25/H25,),IF(J25<>0,P25/J25,0))) -> 0.004868693115
B26: =IF('3. Rate Classes'!Q25=1,'3. Rate Classes'!C25, 0) -> General Service Less Than 50 kW | D26: =IF(ISERROR(VLOOKUP($B26, '3. Rate Classes'!$C$24:$H$45,6,0)), "", VLOOKUP($B26, '3. Rate Classes'!$C$24:$H$45,6,0)) -> kWh | F26: =VLOOKUP($B26, '10. Adj Conn. to Current WS'!$B$25:$R$47, 17,0) -> 0.00449417826 | H26: =VLOOKUP('9. Adj Network to Current WS'!$B26, '4. RRR Data'!$B$27:$M$49,11,0) -> 60984350.74 | J26: =VLOOKUP('9. Adj Network to Current WS'!$B26, '4. RRR Data'!$B$27:$M$49,12,0) -> 0 | L26: 274074.5433 | N26: 0.1516545865 | P26: =IF(ISERROR('8. Forecast Wholesale'!$P$75*N26), "", '8. Forecast Wholesale'!$P$75*N26) -> 274074.5433 | R26: 0.00449417826
B27: =IF('3. Rate Classes'!Q26=1,'3. Rate Classes'!C26, 0) -> General Service 50 to 4,999 kW | D27: =IF(ISERROR(VLOOKUP($B27, '3. Rate Classes'!$C$24:$H$45,6,0)), "", VLOOKUP($B27, '3. Rate Classes'!$C$24:$H$45,6,0)) -> kW | F27: =VLOOKUP($B27, '10. Adj Conn. to Current WS'!$B$25:$R$47, 17,0) -> 1.762092393 | H27: =VLOOKUP('9. Adj Network to Current WS'!$B27, '4. RRR Data'!$B$27:$M$49,11,0) -> 29326720 | J27: =VLOOKUP('9. Adj Network to Current WS'!$B27, '4. RRR Data'!$B$27:$M$49,12,0) -> 95668 | L27: 168575.855 | N27: 0.09327864339 | P27: =IF(ISERROR('8. Forecast Wholesale'!$P$75*N27), "", '8. Forecast Wholesale'!$P$75*N27) -> 168575.855 | R27: 1.762092393
B28: =IF('3. Rate Classes'!Q27=1,'3. Rate Classes'!C27, 0) -> General Service 50 to 4,999 kW – Interval Metered | D28: =IF(ISERROR(VLOOKUP($B28, '3. Rate Classes'!$C$24:$H$45,6,0)), "", VLOOKUP($B28, '3. Rate Classes'!$C$24:$H$45,6,0)) -> kW | F28: =VLOOKUP($B28, '10. Adj Conn. to Current WS'!$B$25:$R$47, 17,0) -> 1.947570875 | H28: =VLOOKUP('9. Adj Network to Current WS'!$B28, '4. RRR Data'!$B$27:$M$49,11,0) -> 89216393 | J28: =VLOOKUP('9. Adj Network to Current WS'!$B28, '4. RRR Data'!$B$27:$M$49,12,0) -> 237050 | L28: 461671.6758 | N28: 0.2554583372 | P28: =IF(ISERROR('8. Forecast Wholesale'!$P$75*N28), "", '8. Forecast Wholesale'!$P$75*N28) -> 461671.6758 | R28: 1.947570875
B29: =IF('3. Rate Classes'!Q28=1,'3. Rate Classes'!C28, 0) -> Unmetered Scattered Load | D29: =IF(ISERROR(VLOOKUP($B29, '3. Rate Classes'!$C$24:$H$45,6,0)), "", VLOOKUP($B29, '3. Rate Classes'!$C$24:$H$45,6,0)) -> kWh | F29: =VLOOKUP($B29, '10. Adj Conn. to Current WS'!$B$25:$R$47, 17,0) -> 0.00449417826 | H29: =VLOOKUP('9. Adj Network to Current WS'!$B29, '4. RRR Data'!$B$27:$M$49,11,0) -> 434158.02 | J29: =VLOOKUP('9. Adj Network to Current WS'!$B29, '4. RRR Data'!$B$27:$M$49,12,0) -> 0 | L29: 1951.183535 | N29: 0.001079654931 | P29: =IF(ISERROR('8. Forecast Wholesale'!$P$75*N29), "", '8. Forecast Wholesale'!$P$75*N29) -> 1951.183535 | R29: 0.00449417826
B30: =IF('3. Rate Classes'!Q29=1,'3. Rate Classes'!C29, 0) -> Sentinel Lighting | D30: =IF(ISERROR(VLOOKUP($B30, '3. Rate Classes'!$C$24:$H$45,6,0)), "", VLOOKUP($B30, '3. Rate Classes'!$C$24:$H$45,6,0)) -> kW | F30: =VLOOKUP($B30, '10. Adj Conn. to Current WS'!$B$25:$R$47, 17,0) -> 1.390854543 | H30: =VLOOKUP('9. Adj Network to Current WS'!$B30, '4. RRR Data'!$B$27:$M$49,11,0) -> 385924 | J30: =VLOOKUP('9. Adj Network to Current WS'!$B30, '4. RRR Data'!$B$27:$M$49,12,0) -> 1069 | L30: 1486.823506 | N30: 0.0008227090385 | P30: =IF(ISERROR('8. Forecast Wholesale'!$P$75*N30), "", '8. Forecast Wholesale'!$P$75*N30) -> 1486.823506 | R30: 1.390854543
B31: =IF('3. Rate Classes'!Q30=1,'3. Rate Classes'!C30, 0) -> Street Lighting | D31: =IF(ISERROR(VLOOKUP($B31, '3. Rate Classes'!$C$24:$H$45,6,0)), "", VLOOKUP($B31, '3. Rate Classes'!$C$24:$H$45,6,0)) -> kW | F31: =VLOOKUP($B31, '10. Adj Conn. to Current WS'!$B$25:$R$47, 17,0) -> 1.362391414 | H31: =VLOOKUP('9. Adj Network to Current WS'!$B31, '4. RRR Data'!$B$27:$M$49,11,0) -> 2281811 | J31: =VLOOKUP('9. Adj Network to Current WS'!$B31, '4. RRR Data'!$B$27:$M$49,12,0) -> 6646 | L31: 9054.453336 | N31: 0.005010131039 | P31: =IF(ISERROR('8. Forecast Wholesale'!$P$75*N31), "", '8. Forecast Wholesale'!$P$75*N31) -> 9054.453336 | R31: 1.362391414
B32: =IF('3. Rate Classes'!Q31=1,'3. Rate Classes'!C31, 0) -> 0 | D32: =IF(ISERROR(VLOOKUP($B32, '3. Rate Classes'!$C$24:$H$45,6,0)), "", VLOOKUP($B32, '3. Rate Classes'!$C$24:$H$45,6,0)) ->  | F32: =VLOOKUP($B32, '10. Adj Conn. to Current WS'!$B$25:$R$47, 17,0) ->  | H32: =VLOOKUP('9. Adj Network to Current WS'!$B32, '4. RRR Data'!$B$27:$M$49,11,0) -> 0 | J32: =VLOOKUP('9. Adj Network to Current WS'!$B32, '4. RRR Data'!$B$27:$M$49,12,0) -> 0 | P32: =IF(ISERROR('8. Forecast Wholesale'!$P$75*N32), "", '8. Forecast Wholesale'!$P$75*N32) -> 
B33: =IF('3. Rate Classes'!Q32=1,'3. Rate Classes'!C32, 0) -> 0 | D33: =IF(ISERROR(VLOOKUP($B33, '3. Rate Classes'!$C$24:$H$45,6,0)), "", VLOOKUP($B33, '3. Rate Classes'!$C$24:$H$45,6,0)) ->  | F33: =VLOOKUP($B33, '10. Adj Conn. to Current WS'!$B$25:$R$47, 17,0) ->  | H33: =VLOOKUP('9. Adj Network to Current WS'!$B33, '4. RRR Data'!$B$27:$M$49,11,0) -> 0 | J33: =VLOOKUP('9. Adj Network to Current WS'!$B33, '4. RRR Data'!$B$27:$M$49,12,0) -> 0 | P33: =IF(ISERROR('8. Forecast Wholesale'!$P$75*N33), "", '8. Forecast Wholesale'!$P$75*N33) -> 
B34: =IF('3. Rate Classes'!Q33=1,'3. Rate Classes'!C33, 0) -> 0 | D34: =IF(ISERROR(VLOOKUP($B34, '3. Rate Classes'!$C$24:$H$45,6,0)), "", VLOOKUP($B34, '3. Rate Classes'!$C$24:$H$45,6,0)) ->  | F34: =VLOOKUP($B34, '10. Adj Conn. to Current WS'!$B$25:$R$47, 17,0) ->  | H34: =VLOOKUP('9. Adj Network to Current WS'!$B34, '4. RRR Data'!$B$27:$M$49,11,0) -> 0 | J34: =VLOOKUP('9. Adj Network to Current WS'!$B34, '4. RRR Data'!$B$27:$M$49,12,0) -> 0 | P34: =IF(ISERROR('8. Forecast Wholesale'!$P$75*N34), "", '8. Forecast Wholesale'!$P$75*N34) -> 
B35: =IF('3. Rate Classes'!Q34=1,'3. Rate Classes'!C34, 0) -> 0 | D35: =IF(ISERROR(VLOOKUP($B35, '3. Rate Classes'!$C$24:$H$45,6,0)), "", VLOOKUP($B35, '3. Rate Classes'!$C$24:$H$45,6,0)) ->  | F35: =VLOOKUP($B35, '10. Adj Conn. to Current WS'!$B$25:$R$47, 17,0) ->  | H35: =VLOOKUP('9. Adj Network to Current WS'!$B35, '4. RRR Data'!$B$27:$M$49,11,0) -> 0 | J35: =VLOOKUP('9. Adj Network to Current WS'!$B35, '4. RRR Data'!$B$27:$M$49,12,0) -> 0 | P35: =IF(ISERROR('8. Forecast Wholesale'!$P$75*N35), "", '8. Forecast Wholesale'!$P$75*N35) -> 
B36: =IF('3. Rate Classes'!Q35=1,'3. Rate Classes'!C35, 0) -> 0 | D36: =IF(ISERROR(VLOOKUP($B36, '3. Rate Classes'!$C$24:$H$45,6,0)), "", VLOOKUP($B36, '3. Rate Classes'!$C$24:$H$45,6,0)) ->  | F36: =VLOOKUP($B36, '10. Adj Conn. to Current WS'!$B$25:$R$47, 17,0) ->  | H36: =VLOOKUP('9. Adj Network to Current WS'!$B36, '4. RRR Data'!$B$27:$M$49,11,0) -> 0 | J36: =VLOOKUP('9. Adj Network to Current WS'!$B36, '4. RRR Data'!$B$27:$M$49,12,0) -> 0 | P36: =IF(ISERROR('8. Forecast Wholesale'!$P$75*N36), "", '8. Forecast Wholesale'!$P$75*N36) -> 
B37: =IF('3. Rate Classes'!Q36=1,'3. Rate Classes'!C36, 0) -> 0 | D37: =IF(ISERROR(VLOOKUP($B37, '3. Rate Classes'!$C$24:$H$45,6,0)), "", VLOOKUP($B37, '3. Rate Classes'!$C$24:$H$45,6,0)) ->  | F37: =VLOOKUP($B37, '10. Adj Conn. to Current WS'!$B$25:$R$47, 17,0) ->  | H37: =VLOOKUP('9. Adj Network to Current WS'!$B37, '4. RRR Data'!$B$27:$M$49,11,0) -> 0 | J37: =VLOOKUP('9. Adj Network to Current WS'!$B37, '4. RRR Data'!$B$27:$M$49,12,0) -> 0 | P37: =IF(ISERROR('8. Forecast Wholesale'!$P$75*N37), "", '8. Forecast Wholesale'!$P$75*N37) -> 
B38: =IF('3. Rate Classes'!Q37=1,'3. Rate Classes'!C37, 0) -> 0 | D38: =IF(ISERROR(VLOOKUP($B38, '3. Rate Classes'!$C$24:$H$45,6,0)), "", VLOOKUP($B38, '3. Rate Classes'!$C$24:$H$45,6,0)) ->  | F38: =VLOOKUP($B38, '10. Adj Conn. to Current WS'!$B$25:$R$47, 17,0) ->  | H38: =VLOOKUP('9. Adj Network to Current WS'!$B38, '4. RRR Data'!$B$27:$M$49,11,0) -> 0 | J38: =VLOOKUP('9. Adj Network to Current WS'!$B38, '4. RRR Data'!$B$27:$M$49,12,0) -> 0 | P38: =IF(ISERROR('8. Forecast Wholesale'!$P$75*N38), "", '8. Forecast Wholesale'!$P$75*N38) -> 
B39: =IF('3. Rate Classes'!Q38=1,'3. Rate Classes'!C38, 0) -> 0 | D39: =IF(ISERROR(VLOOKUP($B39, '3. Rate Classes'!$C$24:$H$45,6,0)), "", VLOOKUP($B39, '3. Rate Classes'!$C$24:$H$45,6,0)) ->  | F39: =VLOOKUP($B39, '10. Adj Conn. to Current WS'!$B$25:$R$47, 17,0) ->  | H39: =VLOOKUP('9. Adj Network to Current WS'!$B39, '4. RRR Data'!$B$27:$M$49,11,0) -> 0 | J39: =VLOOKUP('9. Adj Network to Current WS'!$B39, '4. RRR Data'!$B$27:$M$49,12,0) -> 0 | P39: =IF(ISERROR('8. Forecast Wholesale'!$P$75*N39), "", '8. Forecast Wholesale'!$P$75*N39) -> 
B40: =IF('3. Rate Classes'!Q39=1,'3. Rate Classes'!C39, 0) -> 0 | D40: =IF(ISERROR(VLOOKUP($B40, '3. Rate Classes'!$C$24:$H$45,6,0)), "", VLOOKUP($B40, '3. Rate Classes'!$C$24:$H$45,6,0)) ->  | F40: =VLOOKUP($B40, '10. Adj Conn. to Current WS'!$B$25:$R$47, 17,0) ->  | H40: =VLOOKUP('9. Adj Network to Current WS'!$B40, '4. RRR Data'!$B$27:$M$49,11,0) -> 0 | J40: =VLOOKUP('9. Adj Network to Current WS'!$B40, '4. RRR Data'!$B$27:$M$49,12,0) -> 0 | P40: =IF(ISERROR('8. Forecast Wholesale'!$P$75*N40), "", '8. Forecast Wholesale'!$P$75*N40) -> 
B41: =IF('3. Rate Classes'!Q40=1,'3. Rate Classes'!C40, 0) -> 0 | D41: =IF(ISERROR(VLOOKUP($B41, '3. Rate Classes'!$C$24:$H$45,6,0)), "", VLOOKUP($B41, '3. Rate Classes'!$C$24:$H$45,6,0)) ->  | F41: =VLOOKUP($B41, '10. Adj Conn. to Current WS'!$B$25:$R$47, 17,0) ->  | H41: =VLOOKUP('9. Adj Network to Current WS'!$B41, '4. RRR Data'!$B$27:$M$49,11,0) -> 0 | J41: =VLOOKUP('9. Adj Network to Current WS'!$B41, '4. RRR Data'!$B$27:$M$49,12,0) -> 0 | P41: =IF(ISERROR('8. Forecast Wholesale'!$P$75*N41), "", '8. Forecast Wholesale'!$P$75*N41) -> 
B42: =IF('3. Rate Classes'!Q41=1,'3. Rate Classes'!C41, 0) -> 0 | D42: =IF(ISERROR(VLOOKUP($B42, '3. Rate Classes'!$C$24:$H$45,6,0)), "", VLOOKUP($B42, '3. Rate Classes'!$C$24:$H$45,6,0)) ->  | F42: =VLOOKUP($B42, '10. Adj Conn. to Current WS'!$B$25:$R$47, 17,0) ->  | H42: =VLOOKUP('9. Adj Network to Current WS'!$B42, '4. RRR Data'!$B$27:$M$49,11,0) -> 0 | J42: =VLOOKUP('9. Adj Network to Current WS'!$B42, '4. RRR Data'!$B$27:$M$49,12,0) -> 0 | P42: =IF(ISERROR('8. Forecast Wholesale'!$P$75*N42), "", '8. Forecast Wholesale'!$P$75*N42) -> 
B43: =IF('3. Rate Classes'!Q42=1,'3. Rate Classes'!C42, 0) -> 0 | D43: =IF(ISERROR(VLOOKUP($B43, '3. Rate Classes'!$C$24:$H$45,6,0)), "", VLOOKUP($B43, '3. Rate Classes'!$C$24:$H$45,6,0)) ->  | F43: =VLOOKUP($B43, '10. Adj Conn. to Current WS'!$B$25:$R$47, 17,0) ->  | H43: =VLOOKUP('9. Adj Network to Current WS'!$B43, '4. RRR Data'!$B$27:$M$49,11,0) -> 0 | J43: =VLOOKUP('9. Adj Network to Current WS'!$B43, '4. RRR Data'!$B$27:$M$49,12,0) -> 0 | P43: =IF(ISERROR('8. Forecast Wholesale'!$P$75*N43), "", '8. Forecast Wholesale'!$P$75*N43) -> 
B44: =IF('3. Rate Classes'!Q43=1,'3. Rate Classes'!C43, 0) -> 0 | D44: =IF(ISERROR(VLOOKUP($B44, '3. Rate Classes'!$C$24:$H$45,6,0)), "", VLOOKUP($B44, '3. Rate Classes'!$C$24:$H$45,6,0)) ->  | F44: =VLOOKUP($B44, '10. Adj Conn. to Current WS'!$B$25:$R$47, 17,0) ->  | H44: =VLOOKUP('9. Adj Network to Current WS'!$B44, '4. RRR Data'!$B$27:$M$49,11,0) -> 0 | J44: =VLOOKUP('9. Adj Network to Current WS'!$B44, '4. RRR Data'!$B$27:$M$49,12,0) -> 0 | P44: =IF(ISERROR('8. Forecast Wholesale'!$P$75*N44), "", '8. Forecast Wholesale'!$P$75*N44) -> 
B45: =IF('3. Rate Classes'!Q44=1,'3. Rate Classes'!C44, 0) -> 0 | D45: =IF(ISERROR(VLOOKUP($B45, '3. Rate Classes'!$C$24:$H$45,6,0)), "", VLOOKUP($B45, '3. Rate Classes'!$C$24:$H$45,6,0)) ->  | F45: =VLOOKUP($B45, '10. Adj Conn. to Current WS'!$B$25:$R$47, 17,0) ->  | H45: =VLOOKUP('9. Adj Network to Current WS'!$B45, '4. RRR Data'!$B$27:$M$49,11,0) -> 0 | J45: =VLOOKUP('9. Adj Network to Current WS'!$B45, '4. RRR Data'!$B$27:$M$49,12,0) -> 0 | P45: =IF(ISERROR('8. Forecast Wholesale'!$P$75*N45), "", '8. Forecast Wholesale'!$P$75*N45) -> 
B46: =IF('3. Rate Classes'!Q45=1,'3. Rate Classes'!C45, 0) -> 0 | D46: =IF(ISERROR(VLOOKUP($B46, '3. Rate Classes'!$C$24:$H$45,6,0)), "", VLOOKUP($B46, '3. Rate Classes'!$C$24:$H$45,6,0)) ->  | F46: =VLOOKUP($B46, '10. Adj Conn. to Current WS'!$B$25:$R$47, 17,0) ->  | H46: =VLOOKUP('9. Adj Network to Current WS'!$B46, '4. RRR Data'!$B$27:$M$49,11,0) -> 0 | J46: =VLOOKUP('9. Adj Network to Current WS'!$B46, '4. RRR Data'!$B$27:$M$49,12,0) -> 0 | P46: =IF(ISERROR('8. Forecast Wholesale'!$P$75*N46), "", '8. Forecast Wholesale'!$P$75*N46) -> 
L49: =SUM(L25:L46) -> 1807228.846

Sheet 13. Final 2013 RTS Rates
B13: For Cost of Service Applicants, please enter the following Proposed RTS rates into your rates model. For IRM applicants, please enter these rates into the 2013 IRM Rate Generator, Sheet 11 "Proposed Rates", column I. Please note that the rate description for the RTSRs has been transfered to Sheet 11, Column A from Sheet 4.
B23: Rate Class | D23: Unit | F23: Proposed RTSR Network | H23: Proposed RTSR Connection
B26: =IF('3. Rate Classes'!Q24=1,'3. Rate Classes'!C24, 0) -> Residential | D26: =IF(ISERROR(VLOOKUP($B26, '3. Rate Classes'!$C$24:$H$45,6,0)), "", VLOOKUP($B26, '3. Rate Classes'!$C$24:$H$45,6,0)) -> kWh | F26: =VLOOKUP($B26, '11. Adj Network to Forecast WS'!$B$25:$R$48,17,0) -> 0.006339419285 | H26: =VLOOKUP($B26, '12. Adj Conn. to Forecast WS'!$B$25:$R$48,17,0) -> 0.004868693115
B27: =IF('3. Rate Classes'!Q25=1,'3. Rate Classes'!C25, 0) -> General Service Less Than 50 kW | D27: =IF(ISERROR(VLOOKUP($B27, '3. Rate Classes'!$C$24:$H$45,6,0)), "", VLOOKUP($B27, '3. Rate Classes'!$C$24:$H$45,6,0)) -> kWh | F27: =VLOOKUP($B27, '11. Adj Network to Forecast WS'!$B$25:$R$48,17,0) -> 0.005677091897 | H27: =VLOOKUP($B27, '12. Adj Conn. to Forecast WS'!$B$25:$R$48,17,0) -> 0.00449417826
B28: =IF('3. Rate Classes'!Q26=1,'3. Rate Classes'!C26, 0) -> General Service 50 to 4,999 kW | D28: =IF(ISERROR(VLOOKUP($B28, '3. Rate Classes'!$C$24:$H$45,6,0)), "", VLOOKUP($B28, '3. Rate Classes'!$C$24:$H$45,6,0)) -> kW | F28: =VLOOKUP($B28, '11. Adj Network to Forecast WS'!$B$25:$R$48,17,0) -> 2.317672767 | H28: =VLOOKUP($B28, '12. Adj Conn. to Forecast WS'!$B$25:$R$48,17,0) -> 1.762092393
B29: =IF('3. Rate Classes'!Q27=1,'3. Rate Classes'!C27, 0) -> General Service 50 to 4,999 kW – Interval Metered | D29: =IF(ISERROR(VLOOKUP($B29, '3. Rate Classes'!$C$24:$H$45,6,0)), "", VLOOKUP($B29, '3. Rate Classes'!$C$24:$H$45,6,0)) -> kW | F29: =VLOOKUP($B29, '11. Adj Network to Forecast WS'!$B$25:$R$48,17,0) -> 2.458464646 | H29: =VLOOKUP($B29, '12. Adj Conn. to Forecast WS'!$B$25:$R$48,17,0) -> 1.947570875
B30: =IF('3. Rate Classes'!Q28=1,'3. Rate Classes'!C28, 0) -> Unmetered Scattered Load | D30: =IF(ISERROR(VLOOKUP($B30, '3. Rate Classes'!$C$24:$H$45,6,0)), "", VLOOKUP($B30, '3. Rate Classes'!$C$24:$H$45,6,0)) -> kWh | F30: =VLOOKUP($B30, '11. Adj Network to Forecast WS'!$B$25:$R$48,17,0) -> 0.005677091897 | H30: =VLOOKUP($B30, '12. Adj Conn. to Forecast WS'!$B$25:$R$48,17,0) -> 0.00449417826
B31: =IF('3. Rate Classes'!Q29=1,'3. Rate Classes'!C29, 0) -> Sentinel Lighting | D31: =IF(ISERROR(VLOOKUP($B31, '3. Rate Classes'!$C$24:$H$45,6,0)), "", VLOOKUP($B31, '3. Rate Classes'!$C$24:$H$45,6,0)) -> kW | F31: =VLOOKUP($B31, '11. Adj Network to Forecast WS'!$B$25:$R$48,17,0) -> 1.756492233 | H31: =VLOOKUP($B31, '12. Adj Conn. to Forecast WS'!$B$25:$R$48,17,0) -> 1.390854543
B32: =IF('3. Rate Classes'!Q30=1,'3. Rate Classes'!C30, 0) -> Street Lighting | D32: =IF(ISERROR(VLOOKUP($B32, '3. Rate Classes'!$C$24:$H$45,6,0)), "", VLOOKUP($B32, '3. Rate Classes'!$C$24:$H$45,6,0)) -> kW | F32: =VLOOKUP($B32, '11. Adj Network to Forecast WS'!$B$25:$R$48,17,0) -> 1.747692741 | H32: =VLOOKUP($B32, '12. Adj Conn. to Forecast WS'!$B$25:$R$48,17,0) -> 1.362391414
B33: =IF('3. Rate Classes'!Q31=1,'3. Rate Classes'!C31, 0) -> 0 | D33: =IF(ISERROR(VLOOKUP($B33, '3. Rate Classes'!$C$24:$H$45,6,0)), "", VLOOKUP($B33, '3. Rate Classes'!$C$24:$H$45,6,0)) ->  | F33: =VLOOKUP($B33, '11. Adj Network to Forecast WS'!$B$25:$R$48,17,0) ->  | H33: =VLOOKUP($B33, '12. Adj Conn. to Forecast WS'!$B$25:$R$48,17,0) -> 
B34: =IF('3. Rate Classes'!Q32=1,'3. Rate Classes'!C32, 0) -> 0 | D34: =IF(ISERROR(VLOOKUP($B34, '3. Rate Classes'!$C$24:$H$45,6,0)), "", VLOOKUP($B34, '3. Rate Classes'!$C$24:$H$45,6,0)) ->  | F34: =VLOOKUP($B34, '11. Adj Network to Forecast WS'!$B$25:$R$48,17,0) ->  | H34: =VLOOKUP($B34, '12. Adj Conn. to Forecast WS'!$B$25:$R$48,17,0) -> 
B35: =IF('3. Rate Classes'!Q33=1,'3. Rate Classes'!C33, 0) -> 0 | D35: =IF(ISERROR(VLOOKUP($B35, '3. Rate Classes'!$C$24:$H$45,6,0)), "", VLOOKUP($B35, '3. Rate Classes'!$C$24:$H$45,6,0)) ->  | F35: =VLOOKUP($B35, '11. Adj Network to Forecast WS'!$B$25:$R$48,17,0) ->  | H35: =VLOOKUP($B35, '12. Adj Conn. to Forecast WS'!$B$25:$R$48,17,0) -> 
B36: =IF('3. Rate Classes'!Q34=1,'3. Rate Classes'!C34, 0) -> 0 | D36: =IF(ISERROR(VLOOKUP($B36, '3. Rate Classes'!$C$24:$H$45,6,0)), "", VLOOKUP($B36, '3. Rate Classes'!$C$24:$H$45,6,0)) ->  | F36: =VLOOKUP($B36, '11. Adj Network to Forecast WS'!$B$25:$R$48,17,0) ->  | H36: =VLOOKUP($B36, '12. Adj Conn. to Forecast WS'!$B$25:$R$48,17,0) -> 
B37: =IF('3. Rate Classes'!Q35=1,'3. Rate Classes'!C35, 0) -> 0 | D37: =IF(ISERROR(VLOOKUP($B37, '3. Rate Classes'!$C$24:$H$45,6,0)), "", VLOOKUP($B37, '3. Rate Classes'!$C$24:$H$45,6,0)) ->  | F37: =VLOOKUP($B37, '11. Adj Network to Forecast WS'!$B$25:$R$48,17,0) ->  | H37: =VLOOKUP($B37, '12. Adj Conn. to Forecast WS'!$B$25:$R$48,17,0) -> 
B38: =IF('3. Rate Classes'!Q36=1,'3. Rate Classes'!C36, 0) -> 0 | D38: =IF(ISERROR(VLOOKUP($B38, '3. Rate Classes'!$C$24:$H$45,6,0)), "", VLOOKUP($B38, '3. Rate Classes'!$C$24:$H$45,6,0)) ->  | F38: =VLOOKUP($B38, '11. Adj Network to Forecast WS'!$B$25:$R$48,17,0) ->  | H38: =VLOOKUP($B38, '12. Adj Conn. to Forecast WS'!$B$25:$R$48,17,0) -> 
B39: =IF('3. Rate Classes'!Q37=1,'3. Rate Classes'!C37, 0) -> 0 | D39: =IF(ISERROR(VLOOKUP($B39, '3. Rate Classes'!$C$24:$H$45,6,0)), "", VLOOKUP($B39, '3. Rate Classes'!$C$24:$H$45,6,0)) ->  | F39: =VLOOKUP($B39, '11. Adj Network to Forecast WS'!$B$25:$R$48,17,0) ->  | H39: =VLOOKUP($B39, '12. Adj Conn. to Forecast WS'!$B$25:$R$48,17,0) -> 
B40: =IF('3. Rate Classes'!Q38=1,'3. Rate Classes'!C38, 0) -> 0 | D40: =IF(ISERROR(VLOOKUP($B40, '3. Rate Classes'!$C$24:$H$45,6,0)), "", VLOOKUP($B40, '3. Rate Classes'!$C$24:$H$45,6,0)) ->  | F40: =VLOOKUP($B40, '11. Adj Network to Forecast WS'!$B$25:$R$48,17,0) ->  | H40: =VLOOKUP($B40, '12. Adj Conn. to Forecast WS'!$B$25:$R$48,17,0) -> 
B41: =IF('3. Rate Classes'!Q39=1,'3. Rate Classes'!C39, 0) -> 0 | D41: =IF(ISERROR(VLOOKUP($B41, '3. Rate Classes'!$C$24:$H$45,6,0)), "", VLOOKUP($B41, '3. Rate Classes'!$C$24:$H$45,6,0)) ->  | F41: =VLOOKUP($B41, '11. Adj Network to Forecast WS'!$B$25:$R$48,17,0) ->  | H41: =VLOOKUP($B41, '12. Adj Conn. to Forecast WS'!$B$25:$R$48,17,0) -> 
B42: =IF('3. Rate Classes'!Q40=1,'3. Rate Classes'!C40, 0) -> 0 | D42: =IF(ISERROR(VLOOKUP($B42, '3. Rate Classes'!$C$24:$H$45,6,0)), "", VLOOKUP($B42, '3. Rate Classes'!$C$24:$H$45,6,0)) ->  | F42: =VLOOKUP($B42, '11. Adj Network to Forecast WS'!$B$25:$R$48,17,0) ->  | H42: =VLOOKUP($B42, '12. Adj Conn. to Forecast WS'!$B$25:$R$48,17,0) -> 
B43: =IF('3. Rate Classes'!Q41=1,'3. Rate Classes'!C41, 0) -> 0 | D43: =IF(ISERROR(VLOOKUP($B43, '3. Rate Classes'!$C$24:$H$45,6,0)), "", VLOOKUP($B43, '3. Rate Classes'!$C$24:$H$45,6,0)) ->  | F43: =VLOOKUP($B43, '11. Adj Network to Forecast WS'!$B$25:$R$48,17,0) ->  | H43: =VLOOKUP($B43, '12. Adj Conn. to Forecast WS'!$B$25:$R$48,17,0) -> 
B44: =IF('3. Rate Classes'!Q42=1,'3. Rate Classes'!C42, 0) -> 0 | D44: =IF(ISERROR(VLOOKUP($B44, '3. Rate Classes'!$C$24:$H$45,6,0)), "", VLOOKUP($B44, '3. Rate Classes'!$C$24:$H$45,6,0)) ->  | F44: =VLOOKUP($B44, '11. Adj Network to Forecast WS'!$B$25:$R$48,17,0) ->  | H44: =VLOOKUP($B44, '12. Adj Conn. to Forecast WS'!$B$25:$R$48,17,0) -> 
B45: =IF('3. Rate Classes'!Q43=1,'3. Rate Classes'!C43, 0) -> 0 | D45: =IF(ISERROR(VLOOKUP($B45, '3. Rate Classes'!$C$24:$H$45,6,0)), "", VLOOKUP($B45, '3. Rate Classes'!$C$24:$H$45,6,0)) ->  | F45: =VLOOKUP($B45, '11. Adj Network to Forecast WS'!$B$25:$R$48,17,0) ->  | H45: =VLOOKUP($B45, '12. Adj Conn. to Forecast WS'!$B$25:$R$48,17,0) -> 
B46: =IF('3. Rate Classes'!Q44=1,'3. Rate Classes'!C44, 0) -> 0 | D46: =IF(ISERROR(VLOOKUP($B46, '3. Rate Classes'!$C$24:$H$45,6,0)), "", VLOOKUP($B46, '3. Rate Classes'!$C$24:$H$45,6,0)) ->  | F46: =VLOOKUP($B46, '11. Adj Network to Forecast WS'!$B$25:$R$48,17,0) ->  | H46: =VLOOKUP($B46, '12. Adj Conn. to Forecast WS'!$B$25:$R$48,17,0) -> 
B47: =IF('3. Rate Classes'!Q45=1,'3. Rate Classes'!C45, 0) -> 0 | D47: =IF(ISERROR(VLOOKUP($B47, '3. Rate Classes'!$C$24:$H$45,6,0)), "", VLOOKUP($B47, '3. Rate Classes'!$C$24:$H$45,6,0)) ->  | F47: =VLOOKUP($B47, '11. Adj Network to Forecast WS'!$B$25:$R$48,17,0) ->  | H47: =VLOOKUP($B47, '12. Adj Conn. to Forecast WS'!$B$25:$R$48,17,0) -> 

Sheet hidden1 (hidden)
A1: =IF('3. Rate Classes'!Q24=1, '3. Rate Classes'!C24, "") -> Residential | B1: 1
A2: =IF('3. Rate Classes'!Q25=1, '3. Rate Classes'!C25, "") -> General Service Less Than 50 kW | B2: 2
A3: =IF('3. Rate Classes'!Q26=1, '3. Rate Classes'!C26, "") -> General Service 50 to 4,999 kW | B3: 3
A4: =IF('3. Rate Classes'!Q27=1, '3. Rate Classes'!C27, "") -> General Service 50 to 4,999 kW – Interval Metered | B4: 4
A5: =IF('3. Rate Classes'!Q28=1, '3. Rate Classes'!C28, "") -> Unmetered Scattered Load | B5: 5
A6: =IF('3. Rate Classes'!Q29=1, '3. Rate Classes'!C29, "") -> Sentinel Lighting | B6: 6
A7: =IF('3. Rate Classes'!Q30=1, '3. Rate Classes'!C30, "") -> Street Lighting | B7: 7
A8: =IF('3. Rate Classes'!Q31=1, '3. Rate Classes'!C31, "") ->  | B8: 8
A9: =IF('3. Rate Classes'!Q32=1, '3. Rate Classes'!C32, "") ->  | B9: 9
A10: =IF('3. Rate Classes'!Q33=1, '3. Rate Classes'!C33, "") ->  | B10: 10
A11: =IF('3. Rate Classes'!Q34=1, '3. Rate Classes'!C34, "") ->  | B11: 11
A12: =IF('3. Rate Classes'!Q35=1, '3. Rate Classes'!C35, "") ->  | B12: 12
A13: =IF('3. Rate Classes'!Q36=1, '3. Rate Classes'!C36, "") ->  | B13: 13
A14: =IF('3. Rate Classes'!Q37=1, '3. Rate Classes'!C37, "") ->  | B14: 14
A15: =IF('3. Rate Classes'!Q38=1, '3. Rate Classes'!C38, "") ->  | B15: 15
A16: =IF('3. Rate Classes'!Q39=1, '3. Rate Classes'!C39, "") ->  | B16: 16
A17: =IF('3. Rate Classes'!Q40=1, '3. Rate Classes'!C40, "") ->  | B17: 17
A18: =IF('3. Rate Classes'!Q41=1, '3. Rate Classes'!C41, "") ->  | B18: 18
A19: =IF('3. Rate Classes'!Q42=1, '3. Rate Classes'!C42, "") ->  | B19: 19
A20: =IF('3. Rate Classes'!Q43=1, '3. Rate Classes'!C43, "") ->  | B20: 20
A21: =IF('3. Rate Classes'!Q44=1, '3. Rate Classes'!C44, "") ->  | B21: 21
A22: =IF('3. Rate Classes'!Q45=1, '3. Rate Classes'!C45, "") ->  | B22: 22
